{"text_format":"1","workbook":"xlsx","n_sheets":4,"sheets":["Gross Rev Wrksht","Instructions","FSA-1122","st_cty_dropdowns"],"not_rendered":{"charts":0,"images":3,"macros":1,"external_links":0,"defined_names":4,"comments":0,"pivot_tables":0},"unopened":[],"bounds":{"document_bytes":16777216,"sheet_cells":100000,"rows_first":2000,"rows_last":500,"rows_between":2000,"halvings":0,"cell_chars":16384,"cell_head_chars":4096},"cells_cut":0,"cells_raw":0,"read":"whole","date_system":"1900"}

{"sheet":"Gross Rev Wrksht","index":0,"n_rows":27,"n_cols":13,"rows_kept":27,"cut":false,"hidden":false,"merged":[[7,8,8,8],[9,4,9,8],[7,2,7,3],[28,3,28,4],[11,7,25,8],[1,1,1,8],[11,5,12,5],[11,6,12,6],[2,5,2,6],[2,2,2,3],[3,2,3,3],[4,2,4,3],[5,2,5,3],[6,2,6,3],[2,7,2,8],[3,4,4,7],[5,4,6,7],[7,4,8,7],[3,8,4,8],[8,1,9,3],[5,8,6,8]]}
[]
[null,"Gross Revenue Calculation Worksheet "]
[null,"Recording State:",null,null,"Recording County:",null,null,{"$f":"TODAY()","v":"2023-06-13"}]
[null,"Name:",null,null,"Are you a new producer who began farming in 2020 that doesn't have revenue in a prior year?",null,null,null,"No"]
[null,"Address 1:",null,null,null,null,null,null,null,null,null,"Yes"]
[null,"Address 2:",null,null,"Are you a new producer who began farming in 2019 that does NOT have a full year's revenue to report?",null,null,null,"No",null,null,"No"]
[null,"City, State and Zip Code:"]
[null,"Phone Number:",null,null,"Did your operation have increased operating capacity in 2020 compared to 2018 or 2019 that impacted revenue?",null,null,null,"No",null,null,{"$f":"IF(AND(L20=1,OR(I4=\"Yes\",I6=\"yes\",I8=\"yes\")),1,0)","v":0}]
[null,null,null,null,null,null,null,null,null,null,null,{"$f":"IF(I4=\"Yes\",E27,IF(D27=0,\"\",E27))","v":""}]
[null,null,null,null,{"$f":"IF(AND(OR(I4=\"yes\",I6=\"Yes\",I8=\"Yes\")),IF(SUM(C27:E27)=0,\"\",IF(L20=0,\"2020 Gross Revenue is Less than Prior Years.  If exceptions apply, complete the FSA-1122 & FSA-1122A.\",\"If the above exceptions apply, complete the FSA-1122 & FSA-1122A, as applicable\")),\"No adjustments allowed\")","v":"No adjustments allowed"}]
[null,"Allowable Revenue Source",2018,2019,2020,null,"Include",null,"Exclude"]
[null,"Sales of agricultural commodities purchased for resale, less the cost or other basis of such commodities.\n(Sched. F Line 1C or other comparable Federal tax form)",null,null,null,"\n· \n· \n\n· \n\n\n\n\n· \n\n","Income from:\ninventory carried over from the prior tax year.\npost-production activities (value added) i.e., grapes into wine or strawberries into jam.\nCommodities not grown in the U.S. (if grown by U.S. producer and marketed in the U.S.).\nInterest Charge Domestic International Sales Corporation (IC-DISC) income from the sale of agricultural commodities.\nCCC loan proceeds, if elected to be treated as income in a prior year, less the tax basis in year of repayment.\nNote:  The sale of eligible aquatic species may only be included if the eligible  aquatic species were raised by a commercial operator and in water in a controlled environment.\n","•\tResale of items not held for \n    characteristic change \n\n•\tTimber\n\n•\tHorses and other animals used\n    for racing or wagering\n\n•\tWild free-roaming animals\n\n•\tAquatic species that are NOT\n     grown: \n       • as food for human or livestock \n            consumption,  \n       • for industrial or biomass uses, \n       • as fish raised as feed for fish that \n            are consumed by humans, or \n       • as ornamental fish propagated \n            and reared in an aquatic \n            medium.  \n\n•\tCannabis sativa L. and any part of that plant including the seeds, thereof and all derivatives, extracts, cannabinoids, isomers, acids, salts, and salts of isomers, weather growing or not, with a delta-9 tetrahydrocannabinol concentration of  more  than 0.3 percent on a dry weight basis, that is grown under a license or other required authorization issued by the applicable governing authority that permits the production of hemp.\n\n•\tCustom hire income(Sched F Line 7, or other comparable Federal tax form)  \n\n•\tPandemic Assistance from:\n       •  Coronavirus Food Assistance Program (CFAP) 1\n       •  Coronavirus Food Assistance Program (CFAP) 2\n       •  Pandemic Livestock Indemnity Program (PLIP)\n       • Spot Market Hogs Pandemic Program (SMHPP)\n\nNote:  If a CFAP payment was received in calendar year 2020, and was included on Scedule F line 4a for calendar year 2020, the amount of the CFAP payment received will need to be deducted from that line item amount when figuring 2020 allowable gross revenue.\n\n•\t2020 Emergency Relief Program (ERP) Payments\n\nNote:  The PARP software will automatically deduct all payments received from the Pandemic programs listed above and the 2020 ERP program during the payment calculation\n\n•\tConservation Program payments\n\n•\tCertificate Exchanges\n\n•\tAny pandemic assistance payments that were not for the loss of agricultural commodities or the loss of revenue from agricultural commodities, including, but not limited to:\n        • cost-share assistance\n        • loss of buildings,\n        • etc.\n\n•\tIncome from a pass-through entity such as an S Corporation or LLC\n\n•\tNet gain from hedging or speculation\n\n•\tWages, salaries, and tips\n\n•\tCash rent\n\n•\tRental of equipment or supplies\n\n•\tRevenue earned as a contract producer",null,null,null,{"$f":"IF(E12>M12,1,0)","v":0},{"$f":"IF($D$27>$C$27,D12,C12)","v":0}]
[null,"Sales of agricultural commodities produced by the producer, including sales resulting from value added through post-production activities. \n(Sched. F Line 2 or other comparable Federal tax form)",null,null,null,null,null,null,null,null,null,{"$f":"IF(E13>M13,1,0)","v":0},0]
[null,"The amount of cooperative distributions directly related to the sale of agricultural commodities produced by the applicant.\n(Sched F – Line 3a and 3b or other comparable Federal tax form)",null,null,null,null,null,null,null,null,null,null,0]
[null,"CCC loans reported under election if elected to be treated as income and reported to IRS.\n(Schedule F Line 5a - 5c or other comparable Federal tax form)",null,null,null,null,null,null,null,null,null,null,0]
[null,"Crop insurance proceeds received from FCIC or a private plan of insurance regardless of crop year (as reported to IRS).\n(Schedule F Line 6 or other comparable Federal tax form)",null,null,null,"· ","Payments received in calendar year regardless of crop year (as reported to IRS)",null,null,null,null,null,0]
[null,"Exclude Custom Hire\n(Sched F Line 7 or other comparable Federal tax form)  ","Not Applicable","Not Applicable","Not Applicable",null,null,null,null,null,null,null,"Not Applicable"]
[null,"Revenue from raised breeding livestock \n(Sched 4797 Part 1 and 2 column (d) or other federal tax form)",null,null,null,"· ","Income from column (d)",null,null,null,null,{"$f":"IF(E18>M18,1,0)","v":0},0]
[null,"Payments received under the following agricultural programs regardless of crop year or program year.\n(Sched F Line 4a or other federal tax form)",null,null,null,"· \n\n· \n· \n·\n\n·  \n· \n· ","Agriculture Risk Coverage and Price Loss Coverage Program (ARC/PLC)\nBiomass Crop Assistance Program (BCAP)\nDairy Margin Coverage Program (DMC)\nLoan Deficiency Payment (LDP), and Market Loan Gains (MLG)\nMarket Facilitation Program (MFP) \nMargin Protection Program (MPP Dairy)\nSeafood Trade Relief Program (STRP)",null,null,null,null,null,{"$f":"IF($D$27>$C$27,D25,C25)","v":0}]
[null,"Federal disaster program payments under the following programs regardless of crop or program year.\n(Schedule F Line 6, or other comparable Federal tax form):",null,null,null,"· \n\n· \n\n\n·\n· \n·  \n· \n· \n· \n· \n · ","2017 Wildfire and Huricanes Indemnity Program (WHIP)\nEmergency Assistance for Livestock, Honeybees, and Farm Raised Fish Program (ELAP)\nLivestock Forage Program (LFP)\nLivestock Indemnity Program (LIP)\nNoninsured Crop Disaster Assistance Program (NAP)\nMilk Loss Program\nOn-Farm Storage Loss Program (OFSLP)\nTree Assistance Program (TAP)\nWildfires and Hurricances Indemnity Program + (WHIP+)",null,null,null,null,{"$f":"MAX(L12:L19)","v":0},{"$f":"IF(C27>D27,2018,2019)","v":2019}]
[null,"Payments issued through grant agreements with FSA for losses of agricultural commodities"]
[null,"Revenue earned as a cattle feeder operation."]
[]
[null,"NOAA grants and State program funds providing direct payments for the loss of agricultural commodities or the loss of revenue from agricultural commodities."]
[null,"Other revenue directly related to the production of agricultural commodities that IRS requires the applicant to report as income.\n(Sched F Line 8 or other federal tax form)",null,null,null,"· \n·  \n· \n","Federal and State gas/fuel tax credits\nIncome from by-passed (unharvested) acres\nCommodity specific income received from State or local governments. "]
[null,"Pandemic Market Volatility Assistance Program (PMVAP) benefits received, regardless of the calendar year in which the payment was received.","Not Applicable","Not Applicable"]
[null,"Total Allowable Revenue",{"$f":"SUM(C12:C25)","v":0},{"$f":"SUM(D12:D25)","v":0},{"$f":"SUM(E12:E26)","v":0},"· \n·  "]

{"sheet":"Instructions","index":1,"n_rows":26,"n_cols":3,"rows_kept":26,"cut":false,"hidden":false,"merged":[[15,1,15,2],[0,1,0,2],[2,1,2,2],[9,1,9,2],[11,1,11,2],[12,1,12,2]]}
[null,{"$f":"'Gross Rev Wrksht'!B2","v":"Gross Revenue Calculation Worksheet "}]
[null,"Data Field Name","Instructions"]
[null,"Information"]
[null,"Recording State","Use the drop down to select the producer’s recording state.\n\nNote:  This will be the same information entered into the FSA-1122 application software and FSA-1122 item 1.  "]
[null,"Recording County","Use the drop-down to select the producer’s recording county.\n\nNote:  This will be the same information entered into the FSA-1122 application software and FSA-1122 item 3.  "]
[null,"Name\nAddress 1\nAddress 2\nCity, State, and Zip Code\nPhone Number","Enter the producer’s name, address, city, state, zip code, and phone number, including area code.\n\nNote:  This will be the same information entered into the FSA-1122 application software and FSA-1122 item 5.  "]
[null,{"$f":"'Gross Rev Wrksht'!E4","v":"Are you a new producer who began farming in 2020 that doesn't have revenue in a prior year?"},"Use the drop down to select \"Yes\" or \"No\".  If \"Yes\", you may complete the Optional Worksheet to potentially adjust 2019 Revenue"]
[null,{"$f":"'Gross Rev Wrksht'!E6","v":"Are you a new producer who began farming in 2019 that does NOT have a full year's revenue to report?"},"Use the drop down to select \"Yes\" or \"No\".  If \"Yes\", you may complete the Optional Worksheet to potentially adjust 2019 Revenue"]
[null,{"$f":"'Gross Rev Wrksht'!E8","v":"Did your operation have increased operating capacity in 2020 compared to 2018 or 2019 that impacted revenue?"},"Use the drop down to select \"Yes\" or \"No\".  If \"Yes\", you may complete the Optional Worksheet to potentially adjust 2019 Revenue"]
[null,{"$f":"'Gross Rev Wrksht'!B2","v":"Gross Revenue Calculation Worksheet "}]
[null,"2018, 2019, 2020 Revenue Source","Enter the information from your Schedule F for 2018 or 2019 and 2020 as instructions on the form indicate."]
[null,{"$f":"#REF!","v":{"$error":"#REF!"}}]
[null,"If \"Yes\" was selected for new 2020 Producer"]
[null,"2020 Expected Allowable \nRevenue\n(Jan 1 - Dec 27)","Enter your expected 2020 allowable revenue.\n\nNote: This will be the same information entered into the FSA-1122 application software and FSA-1122 item 7.  "]
[null,"2020 Actual Allowable Revenue","Enter the eligible revenue received for the commodity from January 1, 2020 to December 27, 2020 for the producer.  \n\nNote:  This will be the same information entered into the FSA-1122 application software and FSA-1122 item 8.  "]
[null,"If \"Yes\" was selected for new 2019 Producer"]
[null,"2019 Actual Allowable \nRevenue\n(Jan 1 - Dec 27)","Enter the eligible revenue received for the commodity from January 1 to December 27, 2020, as certified by the producer.  \n\nNote:  This will be the same amount entered into the CFAP 2 application software as \"2020 Revenue\", and AD-3117 Item 29 for the applicable commodity in Item 27.  "]
[null,"Commodity","Enter the eligible commodity or commodities grown  producer.  \n"]
[null,"Unit of Measure","If applicable, use the drop down to select the unit of measure for the commodity: \n\nThe units of measure are:\n• Head\n• Lbs\n• Dozen\n• Acres\n• N/A"]
[null,"2019 Total Production\n(Jan 1 - Dec 27)","Enter the total production for the commodity between January 1, 2019 and December 27, 2019, if applicable."]
[null,"2019 # of Turns\n(Jan 1 - Dec 27)","Enter the number of turns for the commodity between January 1 and December 27 for the year selected, if applicable."]
[null,"2020 Total Production\n(Jan 1 - Dec 27)","Enter the total production for the commodity between January 1 and December 27, 2020 if applicable."]
[null,"2020 # of Turns\n(Jan 1 - Dec 27)","Enter the number of turns for the commodity between January 1 and December 27, 2020 if applicable."]
[null,{"$f":"#REF!","v":{"$error":"#REF!"}},"No Entry Required.  A 2019 Revenue\" will automatically calculate based on the information provided.  The formula for the calculation is the higher of:\n▪ (2020 total production ÷ 2018 or 2019 total production) X 2018 or 2019 revenue, or;\n▪ (2020 number of turns ÷ 2018 or 2019 number of turns) X 2018 or 2018 revenue.\n\nNote:  This will be the same information entered into the FSA-1122 application software and FSA-1122 item 7.   "]
[]
[null,"Each completed workbook and form should be saved…."]

{"sheet":"FSA-1122","index":2,"n_rows":49,"n_cols":24,"rows_kept":49,"cut":false,"hidden":false,"merged":[[17,3,17,23],[21,3,21,23],[41,22,41,23],[46,0,46,12],[47,0,47,12],[46,18,46,23],[46,13,46,17],[47,13,47,17],[41,17,41,21],[40,13,40,16],[41,4,41,8],[41,9,41,12],[41,13,41,16],[40,9,40,12],[38,22,38,23],[39,22,39,23],[40,22,40,23],[38,17,38,21],[39,17,39,21],[40,17,40,21],[38,13,38,16],[39,13,39,16],[38,0,38,3],[38,4,38,8],[38,9,38,12],[39,4,39,8],[39,9,39,12],[48,0,48,23],[18,3,18,23],[19,3,19,23],[20,3,20,23],[29,1,29,23],[47,18,47,22],[43,0,43,23],[44,0,44,10],[44,11,44,20],[44,21,44,23],[45,0,45,23],[42,0,42,23],[41,0,41,3],[39,0,39,3],[40,0,40,3],[40,4,40,8],[35,0,35,22],[36,0,36,17],[36,18,36,23],[37,0,37,12],[37,13,37,23],[34,0,34,22],[22,1,22,23],[23,1,23,23],[24,3,24,23],[25,3,25,23],[26,3,26,23],[27,3,27,23],[28,3,28,23],[30,1,30,23],[32,0,32,23],[33,0,33,23],[31,1,31,23],[13,1,13,23],[14,3,14,23],[15,3,15,23],[16,3,16,23],[7,1,7,23],[8,0,8,23],[9,0,9,23],[10,1,10,23],[11,1,11,23],[12,1,12,23],[4,1,6,10],[4,13,4,18],[4,19,4,23],[5,13,5,18],[5,19,5,23],[6,13,6,18],[6,19,6,23],[1,0,1,23],[2,0,2,12],[2,13,2,18],[2,19,2,23],[3,0,3,12],[3,13,3,18],[3,19,3,23]]}
[null,null,null,null,null,null,null,null,null,null,null,null,null,null,null,null,null,null,null,null,null,null,null,"Form Approved - OMB No. 0560-0312"]
["This form is available electronically.                                                                                                                        OMB  Expiration date 07/31/2023"]
["FSA-1122            U.S. DEPARTMENT OF AGRICULTURE",null,null,null,null,null,null,null,null,null,null,null,null,"1.   Recording State",null,null,null,null,null,"2.  Program Year"]
["(06-13-23)",null,null,null,null,null,null,null,null,null,null,null,null,{"$f":"IF('Gross Rev Wrksht'!C3=\"\",\"\",'Gross Rev Wrksht'!C3)","v":""},null,null,null,null,null,2020]
[null,"PANDEMIC ASSISTANCE REVENUE\nPROGRAM APPLICATION"]
[null,null,null,null,null,null,null,null,null,null,null,null,null,"3.  Recording County",null,null,null,null,null,"4. Application Number"]
[null,null,null,null,null,null,null,null,null,null,null,null,null,{"$f":"IF('Gross Rev Wrksht'!F3=\"\",\"\",'Gross Rev Wrksht'!F3)","v":""}]
["NOTE:","The following statement is made in accordance with the Privacy Act of 1974 (5 USC 552a - as amended). The authority for requesting the information identified on this form is  7 CFR Part 9, and the Consolidated Appropriations Act (Pub. L 116-260).  The information will be used to determine eligibility for program benefits.  The information collected on this form may be disclosed to other Federal, State, and Local government agencies, Tribal agencies, and nongovernmental entities that have been authorized access to the information by statute or regulation and/or as described in applicable Routine Uses identified in the System of Records Notice for USDA/FSA-2, Farm Records File (Automated).  Providing the requested information is voluntary.  However, failure to furnish the requested information will result in a determination of ineligibility for program benefits.  Payments may be made under the program to which the form applies only to the extent permitted by applicable authorities. \n\nPublic Burden Statement (Paperwork Reduction Act):  Public reporting burden for this collection is estimated to average 60 minutes per response, including reviewing instructions, gathering and maintaining the data needed, completing (providing the information), and reviewing the collection of information. You are not required to respond to the collection, or USDA may not conduct or sponsor a collection of information unless it displays a valid OMB control number.  RETURN THIS COMPLETED FORM TO LOCAL USDA-FARM SERVICE AGENCY OFFICE. "]
["PART A – PRODUCER AGREEMENT"]
["The Department of Agriculture (USDA) will make PARP payments to producers who meet the requirements of the program. The following information is needed for USDA to make a determination that the applicant is eligible to receive a PARP payment. By submitting this application, and upon approval by USDA, the applicant agrees:"]
["1.","To comply with regulations set forth in 7 CFR Part 9, subpart D;"]
["2.","That a PARP payment will only be made with respect to revenue losses for commodities grown in the US, unless the commodity was produced outside the US by a producer located in the US and marketed in the US;"]
["3.","To provide, upon request,   to USDA all information that is necessary to verify that the information provided on this form is accurate and to allow USDA representative access to all documents and records of the producer, including those in the possession of a third-party such as a warehouse operator, processor or packer;"]
["4.","To comply with maximum payment limitation, adjusted gross income, and other provisions applicable to the PARP by completing forms: "]
[null,null,null,"•\t   CCC-902, Farm Operating Plan for Payment Eligibility "]
[null,null,null,"•\t   CCC-901, Member Information for Legal Entities, if applicablee"]
[null,null,null,"•\t   CCC-941, Average Adjusted Gross Income (AGI) Certification and Consent to Disclosure of Tax Information"]
[null,null,null,"•\t   FSA-1122A, Continuation Sheet For Pandemic Assistance Revenue Program (PARP) Adjusted Revenue, if applicable"]
[null,null,null,"•\t   FSA-1123, Certification of 2020 Adjusted Gross Income, optional "]
[null,null,null,"•\t   CCC-860, Socially Disadvantaged, Limited Resource, Beginning and Veteran Farmer or Rancher Certification, optional "]
[null,null,null,"•\t  AD-2106, Form to Assist in Assessment of USDA Compliance With Civil Rights Laws, optional "]
[null,null,null,"•\t   AD-2047, Customer Data Worksheet, optional; "]
["5.","To provide to USDA all eligibility documents required for program participation within 60 days from the date the applicant signs this application. Failure of an individual, entity, or member of an entity to timely submit all eligibility documents required may result in no payment or a reduced payment."]
["6.","To comply with the provisions of the Food Security Act of 1985 that protect highly erodible land and wetlands. All applicants must complete and submit all portions of form AD-1026, Highly Erodible Land Conservation (HELC) and Wetland Conservation (WC) Certification unless:"]
["6A.",null,"i.→","The applicant does not participate in USDA benefits subject to HELC and WC compliance except Federal Crop Insurance or CFAP, and"]
[null,null,"ii.→","The applicant only has an interest in land devoted to the production of agricultural commodities that are perennial crops, excluding sugar cane, such as tree fruits, tree nuts, grapes, olives, native pasture and perennial forage.  If the applicant produces alfalfa, the applicant must contact the Natural Resources Conservation Service to determine if such production qualifies as the production of a perennial crop; and "]
[null,null,"iii.→","The applicant has not converted a wetland after December 23, 1985; or"]
["6B.",null,"i.→","The applicant does not own or rent land devoted to an agricultural activity including cropland, rangeland, pastureland or forestland;"]
[null,null,"ii.→","The applicant is a producer of livestock, nursery crops, honey or similar commodity that is not produced from tillage of land"]
["7.","If the applicant meets either the conditions in Item 6A (certification with box 5B on AD-1026) or 6B Certification (certification with box 5A on         AD-1026), the applicant is only required to complete Parts A and D of form AD-1026."]
["8.","If the applicant identifies as being a new producer or has an increase in operation they need to complete supplemental worksheet FSA-1122A."]
["9.","If applicant receives assistance  through the Coronavirus Food Assistance Program 1 or 2, Pandemic Livestock Indemnity Program, Spot Market Hog Pandemic Program, or Emergency Relief Program for 2020 after their PARP payment is issued, their PARP payment will be recalculated   and the applicant must refund any resulting overpayment.   "]
["PART B – PRODUCER INFORMATION"]
["5.  Producer’s Name and Address (City, State and Zip Code) and Phone Number (Include Area Code):"]
[{"$f":"IF('Gross Rev Wrksht'!C4=\"\",\"\",'Gross Rev Wrksht'!C4)","v":""}]
[{"$f":"IF('Gross Rev Wrksht'!C5=\"\",\"\",'Gross Rev Wrksht'!C5&\" \"&'Gross Rev Wrksht'!C6)","v":""}]
[{"$f":"IF('Gross Rev Wrksht'!C7=\"\",\"\",'Gross Rev Wrksht'!C7)","v":""},null,null,null,null,null,null,null,null,null,null,null,null,null,null,null,null,null,{"$f":"IF('Gross Rev Wrksht'!C8=\"\",\"\",'Gross Rev Wrksht'!C8)","v":""}]
["PART C – ALLOWABLE GROSS REVENUE",null,null,null,null,null,null,null,null,null,null,null,null,"COC USE ONLY"]
[6,null,null,null,7,null,null,null,null,8,null,null,null,9,null,null,null,10,null,null,null,null,11]
["2018 Allowable Gross",null,null,null,"2019 Allowable Gross",null,null,null,null,"2020 Allowable Gross",null,null,null,"COC Adjusted 2018",null,null,null,"COC Adjusted 2019",null,null,null,null,"COC Adjusted 2020"]
["Revenue",null,null,null,"Revenue",null,null,null,null,"Revenue",null,null,null,"Allowable Gross\nRevenue",null,null,null,"Allowable Gross\nRevenue",null,null,null,null,"Allowable Gross\nRevenue"]
[{"$f":"IF('Gross Rev Wrksht'!C27=0,\"\",'Gross Rev Wrksht'!C27)","v":""},null,null,null,{"$f":"IF('Gross Rev Wrksht'!D27=0,\"\",'Gross Rev Wrksht'!D27)","v":""},null,null,null,null,{"$f":"IF('Gross Rev Wrksht'!E27=0,0,'Gross Rev Wrksht'!E27)","v":0}]
["PART D – PRODUCER CERTIFICATION"]
["I hereby sign and acknowledge under penalty of perjury in accordance with 28 U.S.C. § 1746 and 18 U.S.C. § 1621 that the foregoing is true and correct."]
["12A.  Signature (By)",null,null,null,null,null,null,null,null,null,null,"12B.  Title/Relationship of the individual signing in the \n         Representative Capacity",null,null,null,null,null,null,null,null,null,"12C.  Date (MM-DD-YYYY)"]
["PART E – COC DETERMINATION"]
["13.  COC or Designee Signature",null,null,null,null,null,null,null,null,null,null,null,null,"14.  Date (MM-DD-YYYY)",null,null,null,null,"15.  Determination"]
[null,null,null,null,null,null,null,null,null,null,null,null,null,null,null,null,null,null,"   APPROVED",null,null,null,null,"DISAPPROVED"]
["In accordance with Federal civil rights law and USDA civil rights regulations and policies, the USDA, its agencies, offices, and employees participating in or administering USDA programs are prohibited from discriminating based on race, color, national origin, religion, sex, gender identity (including gender expression), sexual orientation, disability, age, marital status, family/parental status, income derived from a public assistance program, political beliefs, or reprisal or retaliation for prior civil rights activity, in any program or activity conducted or funded by USDA (not all bases apply to all programs). Remedies and complaint filing deadlines vary by program or incident.\n \nPersons with disabilities who require alternative means of communication for program information (e.g., Braille, large print, audiotape, American Sign Language, etc.) should contact the responsible agency or USDA’s TARGET Center at (202) 720-2600 (voice and TTY) or contact USDA through the Federal Relay Service at (800) 877-8339. Additionally, program information may be made available in languages other than English. \n\nTo file a program discrimination complaint, complete the USDA Program Discrimination Complaint Form, AD-3027, found online at http://www.ascr.usda.gov/complaint_filing_cust.html and at any USDA office or write a letter addressed to USDA and provide in the letter all of the information requested in the form. To request a copy of the complaint form, call (866) 632-9992. Submit your completed form or letter to USDA by: (1) mail: U.S. Department of Agriculture Office of the Assistant Secretary for Civil Rights 1400 Independence Avenue, SW Washington, D.C. 20250-9410; (2) fax: (202) 690-7442; or (3) email: program.intake@usda.gov.  USDA is an equal opportunity provider, employer, and lender."]

{"sheet":"st_cty_dropdowns","index":3,"n_rows":255,"n_cols":58,"rows_kept":255,"cut":false,"hidden":true,"merged":[]}
[" ","Alabama (01)","Alaska (02)","Arizona (04)","Arkansas (05)","California (06)","Colorado (08)","Connecticut (09)","Delaware (10)","District of Columbia (11)","Florida (12)","Georgia (13)","Guam (14)","Hawaii (15)","Idaho (16)","Illinois (17)","Indiana (18)","Iowa (19)","Kansas (20)","Kentucky (21)","Louisiana (22)","Maine (23)","Maryland (24)","Massachusetts (25)","Michigan (26)","Minnesota (27)","Mississippi (28)","Missouri (29)","Montana (30)","Nebraska (31)","Nevada (32)","New Hampshire (33)","New Jersey (34)","New Mexico (35)","New York (36)","North Carolina (37)","North Dakota (38)","Ohio (39)","Oklahoma (40)","Oregon (41)","Pennsylvania (42)","Rhode Island (44)","South Carolina (45)","South Dakota (46)","Tennessee (47)","Texas (48)","Utah (49)","Vermont (50)","Virginia (51)","Virgin Islands of the U.S. (52)","Washington (53)","West Virginia (54)","Wisconsin (55)","Wyoming (56)","American Samoa (60)","Federated States of Micronesia (64)","Northern Mariana Islands (69)","Puerto Rico (72)"]
[null,"Autauga (001)","Fairbanks (001)","Apache (001)","Arkansas (001)","Alameda (001)","Adams (001)","Fairfield (001)","Kent (001)","District of Columbia (001)","Alachua (001)","Appling (001)","Guam (001)","Hawaii (001)","Ada (001)","Adams (001)","Adams (001)","Adair (001)","Allen (001)","Adair (001)","Acadia (001)","Androscoggin (001)","Allegany (001)","Barnstable (001)","Alcona (001)","Aitkin (001)","Adams (001)","Adair (001)","Beaverhead (001)","Adams (001)","Churchill (001)","Belknap (001)","Atlantic (001)","Bernalillo (001)","Albany (001)","Alamance (001)","Adams (001)","Adams (001)","Adair (001)","Baker (001)","Adams (001)","Bristol (001)","Abbeville (001)","Aurora (003)","Anderson (001)","Anderson (001)","Beaver (001)","Addison (001)","Accomack (001)","St. Croix (001)","Adams (001)","Barbour (001)","Adams (001)","Albany (001)","American Samoa (001)","Pohnpei (040)","Rota (100)","Adjuntas (001)"]
[null,"Baldwin (003)","Delta (002)","Cochise (003)","Ashley (003)","Alpine (003)","Alamosa (003)","Hartford (003)","New Castle (003)",null,"Baker (003)","Atkinson (003)",null,"Honolulu (003)","Adams (003)","Alexander (003)","Allen (003)","Adams (003)","Anderson (003)","Allen (003)","Allen (003)","Houlton (002)","Anne Arundel (003)","Berkshire (003)","Alger (003)","Anoka (003)","Alcorn (003)","Andrew (003)","Big Horn (003)","Antelope (003)","Clark (003)","Carroll (003)","Burlington (005)","Catron (003)","Allegany (003)","Alexander (003)","Barnes (003)","Allen (003)","Alfalfa (003)","Benton (003)","Allegheny (003)","Kent (003)","Aiken (003)","Beadle (005)","Bedford (003)","Andrews (003)","Box Elder (003)","Bennington (003)","Albemarle, Charlottesville City (003)","St. John (003)","Asotin (003)","Berkeley (003)","Ashland (003)","Big Horn (003)",null,null,"Saipan (110)","Arecibo (013)"]
[null,"Barbour (005)","Homer (003)","Coconino (005)","Baxter (005)","Amador (005)","Arapahoe (005)","Litchfield (005)","Sussex (005)",null,"Bay (005)","Bacon (005)",null,"Kalawao (005)","Bannock (005)","Bond (005)","Bartholomew (005)","Allamakee (005)","Atchison (005)","Anderson (005)","Ascension (005)","Aroostook (003)","Baltimore (005)","Bristol (005)","Allegan (005)","Becker (005)","Amite (005)","Atchison (005)","Blaine (005)","Arthur (005)","Douglas (005)","Cheshire (005)","Camden (007)","Chaves (005)","Bronx (005)","Alleghany (005)","Benson (005)","Ashland (005)","Atoka (005)","Clackamas (005)","Armstrong (005)","Newport (005)","Allendale (005)","Bennett (007)","Benton (005)","Angelina (005)","Cache (005)","Caledonia (005)","Alleghany, Covington City (005)","St. Thomas (005)","Benton (005)","Boone (005)","Barron (005)","Campbell (005)",null,null,"Tinian (120)","Barranquitas (019)"]
[null,"Bibb (007)","Palmer (005)","Gila (007)","Benton (007)","Butte (007)","Archuleta (007)","Middlesex (007)",null,null,"Bradford (007)","Baker (007)",null,"Kauai (007)","Bear Lake (007)","Boone (007)","Benton (007)","Appanoose (007)","Barber (007)","Ballard (007)","Assumption (007)","Fort Kent (004)","Calvert (009)","Dukes (007)","Alpena (007)","Beltrami (007)","Attala (007)","Audrain (007)","Broadwater (007)","Banner (007)","Elko (007)","Coos (007)","Cape May (009)","Cibola (006)","Broome (007)","Anson (007)","Billings (007)","Ashtabula (007)","Beaver (007)","Clatsop (007)","Beaver (007)","Providence (007)","Anderson (007)","Bon Homme (009)","Bledsoe (007)","Aransas (007)","Carbon (007)","Chittenden (007)","Amelia (007)",null,"Chelan (007)","Braxton (007)","Bayfield (007)","Carbon (007)",null,null,null,"Caguas (025)"]
[null,"Blount (009)",null,"Graham (009)","Boone (009)","Calaveras (009)","Baca (009)","New Haven (009)",null,null,"Brevard (009)","Baldwin (009)",null,"Maui (009)","Benewah, South Shoshone (009)","Brown (009)","Blackford (009)","Audubon (009)","Barton (009)","Barren (009)","Avoyelles (009)","Cumberland (005)","Caroline (011)","Essex (009)","Antrim (009)","Benton (009)","Benton (009)","Barry (009)","Carbon (009)","Blaine (009)","Esmeralda (009)","Grafton (009)","Cumberland (011)","Colfax (007)","Cattaraugus (009)","Ashe (009)","Bottineau (009)","Athens (009)","Beckham (009)","Columbia (009)","Bedford (009)","Washington (009)","Bamberg (009)","Brookings (011)","Blount (009)","Archer (009)","Daggett (009)","Essex (009)","Amherst (009)",null,"Clallam (009)","Brooke (009)","Brown (009)","Converse (009)",null,null,null,"Corozal (047)"]
[null,"Bullock (011)",null,"Greenlee (011)","Bradley (011)","Colusa (011)","Bent (011)","New London (011)",null,null,"Broward (011)","Banks (011)",null,null,"Bingham (011)","Bureau (011)","Boone (011)","Benton (011)","Bourbon (011)","Bath (011)","Beauregard (011)","Franklin (007)","Carroll (013)","Franklin (011)","Arenac (011)","Big Stone (011)","Bolivar (011)","Barton (011)","Carter (011)","Boone (011)","Eureka (011)","Hillsborough (011)","Gloucester (015)","Curry (009)","Cayuga (011)","Avery (011)","Bowman (011)","Auglaize (011)","Blaine (011)","Coos (011)","Berks (011)",null,"Barnwell (011)","Brown (013)","Bradley (011)","Armstrong (011)","Davis (011)","Franklin (011)","Appomattox (011)",null,"Clark (011)","Cabell (011)","Buffalo (011)","Crook (011)",null,null,null,"Lares (081)"]
[null,"Butler (013)",null,"La Paz (012)","Calhoun (013)","Contra Costa (013)","Boulder (013)","Tolland (013)",null,null,"Calhoun (013)","Barrow (013)",null,null,"Blaine (013)","Calhoun (013)","Brown (013)","Black Hawk (013)","Brown (013)","Bell (013)","Bienville (013)","Hancock (009)","Cecil (015)","Hampden (013)","Baraga (013)","Blue Earth (013)","Calhoun (013)","Bates (013)","Cascade (013)","Box Butte (013)","Humboldt (013)","Merrimack (013)","Hunterdon (019)","De Baca (011)","Chautauqua (013)","Beaufort (013)","Burke (013)","Belmont (013)","Bryan (013)","Crook (013)","Blair (013)",null,"Beaufort (013)","Brule (015)","Campbell (013)","Atascosa (013)","Duchesne (013)","Grand Isle (013)","Arlington (013)",null,"Columbia (013)","Calhoun (013)","Burnett (013)","Fremont (013)",null,null,null,"Mayaguez (097)"]
[null,"Calhoun (015)",null,"Maricopa (013)","Carroll (015)","Del Norte (015)","Broomfield (014)","Windham (015)",null,null,"Charlotte (015)","Bartow (015)",null,null,"Boise (015)","Carroll (015)","Carroll (015)","Boone (015)","Butler (015)","Boone (015)","Bossier (015)","Kennebec (011)","Charles (017)","Hampshire (015)","Barry (015)","Brown (015)","Carroll (015)","Benton (015)","Chouteau (015)","Boyd (015)","Lander (015)","Rockingham (015)","Mercer (021)","Dona Ana (013)","Chemung (015)","Bertie (015)","Burleigh (015)","Brown (015)","Caddo (015)","Curry (015)","Bradford (015)",null,"Berkeley (015)","Buffalo (017)","Cannon (015)","Austin (015)","Emery (015)","Lamoille (015)","Augusta (015)",null,"Cowlitz (015)","Clay (015)","Calumet (015)","Goshen (015)",null,null,null,"Ponce (113)"]
[null,"Chambers (017)",null,"Mohave (015)","Chicot (017)","El Dorado (017)","Chaffee (015)",null,null,null,"Citrus (017)","Ben Hill (017)",null,null,"Bonner (017)","Cass (017)","Cass (017)","Bremer (017)","Chase (017)","Bourbon (017)","Caddo (017)","Knox (013)","Dorchester (019)","Middlesex (017)","Bay (017)","Carlton (017)","Chickasaw (017)","Bollinger (017)","Custer (017)","Brown (017)","Lincoln (017)","Strafford (017)","Middlesex (023)","Eddy (015)","Chenango (017)","Bladen (017)","Cass (017)","Butler (017)","Canadian (017)","Deschutes (017)","Bucks (017)",null,"Calhoun (017)","Butte (019)","Carroll (017)","Bailey (017)","Garfield (017)","Orange (017)","Bath (017)",null,"Douglas (017)","Doddridge (017)","Chippewa (017)","Hot Springs (017)",null,null,null,"Utuado (141)"]
[null,"Cherokee (019)",null,"Navajo (017)","Clark (019)","Fresno (019)","Cheyenne (017)",null,null,null,"Clay (019)","Berrien (019)",null,null,"Bonneville (019)","Champaign (019)","Clark (019)","Buchanan (019)","Chautauqua (019)","Boyd (019)","Calcasieu (019)","Lincoln (015)","Frederick (021)","Nantucket (019)","Benzie (019)","Carver (019)","Choctaw (019)","Boone (019)","Daniels (019)","Buffalo (019)","Lyon (019)","Sullivan (019)","Monmouth (025)","Grant (017)","Clinton (019)","Brunswick (019)","Cavalier (019)","Carroll (019)","Carter (019)","Douglas (019)","Butler (019)",null,"Charleston (019)","Campbell (021)","Carter (019)","Bandera (019)","Grand (019)","Orleans (019)","Bedford (019)",null,"Ferry (019)","Fayette (019)","Clark (019)","Johnson (019)"]
[null,"Chilton (021)",null,"Pima (019)","Clay (021)","Glenn (021)","Clear Creek (019)",null,null,null,"Collier (021)","Bibb (021)",null,null,"Boundary (021)","Christian (021)","Clay (021)","Buena Vista (021)","Cherokee (021)","Boyle (021)","Caldwell (021)","Oxford (017)","Garrett (023)","Norfolk (021)","Berrien (021)","Cass (021)","Claiborne (021)","Buchanan (021)","Dawson (021)","Burt (021)","Mineral (021)",null,"Morris, Bergen, Essex, Hudson, Passaic (027)","Guadalupe (019)","Columbia (021)","Buncombe (021)","Dickey (021)","Champaign (021)","Cherokee (021)","Gilliam (021)","Cambria (021)",null,"Cherokee (021)","Charles Mix (023)","Cheatham (021)","Bastrop (021)","Iron (021)","Rutland (021)","Bland (021)",null,"Franklin (021)","Gilmer (021)","Columbia (021)","Laramie (021)"]
[null,"Choctaw (023)",null,"Pinal (021)","Cleburne (023)","Humboldt (023)","Conejos (021)",null,null,null,"Columbia (023)","Bleckley (023)",null,null,"Butte (023)","Clark (023)","Clinton (023)","Butler (023)","Cheyenne (023)","Bracken (023)","Cameron (023)","Penobscot (019)","Harford (025)","Plymouth (023)","Branch (023)","Chippewa (023)","Clarke (023)","Butler (023)","Deer Lodge (023)","Butler (023)","Northwest Nye (023)",null,"Ocean (029)","Harding (021)","Cortland (023)","Burke (023)","Divide (023)","Clark (023)","Choctaw (023)","Grant (023)","Cameron (023)",null,"Chester (023)","Clark (025)","Chester (023)","Baylor (023)","Juab (023)","Washington (023)","Botetourt (023)",null,"Garfield (023)","Grant (023)","Crawford (023)","Lincoln (023)"]
[null,"Clarke (025)",null,"Santa Cruz (023)","Cleveland (025)","Imperial (025)","Costilla (023)",null,null,null,"Dade, Monroe (025)","Brantley (025)",null,null,"Camas (025)","Clay (025)","Crawford (025)","Calhoun (025)","Clark (025)","Breathitt (025)","Catahoula (025)","Piscataquis (021)","Howard (027)","Suffolk (025)","Calhoun (025)","Chisago (025)","Clay (025)","Caldwell (025)","Fallon (025)","Cass (025)","Pershing (027)",null,"Salem (033)","Hidalgo (023)","Delaware (025)","Cabarrus (025)","Dunn (025)","Clermont (025)","Cimarron (025)","Harney (025)","Carbon (025)",null,"Chesterfield (025)","Clay (027)","Claiborne (025)","Bee (025)","Kane (025)","Windham (025)","Brunswick (025)",null,"Grant (025)","Greenbrier (025)","Dane (025)","Natrona (025)"]
[null,"Clay (027)",null,"Yavapai (025)","Columbia (027)","Inyo (027)","Crowley (025)",null,null,null,"DeSoto (027)","Brooks (027)",null,null,"Canyon (027)","Clinton (027)","Daviess (027)","Carroll (027)","Clay (027)","Breckinridge (027)","Claiborne (027)","Sagadahoc (023)","Kent (029)","Worcester (027)","Cass (027)","Clay (027)","Coahoma (027)","Callaway (027)","Fergus (027)","Cedar (027)","Storey (029)",null,"Somerset, Union (035)","Lea (025)","Dutchess (027)","Caldwell (027)","Eddy (027)","Clinton (027)","Cleveland (027)","Hood River (027)","Centre (027)",null,"Clarendon (027)","Codington (029)","Clay (027)","Bell (027)","Millard (027)","Windsor (027)","Buchanan (027)",null,"Grays Harbor (027)","Hampshire (027)","Dodge (027)","Niobrara (027)"]
[null,"Cleburne (029)",null,"Yuma (027)","Conway (029)","Kern (029)","Custer (027)",null,null,null,"Dixie (029)","Bryan (029)",null,null,"Caribou (029)","Coles (029)","Dearborn (029)","Cass (029)","Cloud (029)","Bullitt (029)","Concordia (029)","Somerset (025)","Montgomery (031)",null,"Charlevoix (029)","Clearwater (029)","Copiah (029)","Camden (029)","Flathead (029)","Chase (029)","Washoe (031)",null,"Sussex (037)","Lincoln (027)","Erie (029)","Camden (029)","Emmons (029)","Columbiana (029)","Coal (029)","Jackson (029)","Chester (029)",null,"Colleton (029)","Corson (031)","Cocke (029)","Bexar (029)","Morgan (029)",null,"Buckingham (029)",null,"Island (029)","Hancock (029)","Door (029)","Park (029)"]
[null,"Coffee (031)",null,null,"Craighead (031)","Kings (031)","Delta (029)",null,null,null,"Duval (031)","Bulloch (031)",null,null,"Cassia (031)","Cook (031)","Decatur (031)","Cedar (031)","Coffey (031)","Butler (031)","De Soto (031)","Waldo (027)","Prince George's (033)",null,"Cheboygan (031)","Cook (031)","Covington (031)","Cape Girardeau (031)","Gallatin (031)","Cherry (031)","White Pine (033)",null,"Warren (041)","Luna (029)","Essex (031)","Carteret (031)","Foster (031)","Coshocton (031)","Comanche (031)","Jefferson (031)","Clarion (031)",null,"Darlington (031)","Custer (033)","Coffee (031)","Blanco (031)","Piute (031)",null,"Campbell, Lynchburg City (031)",null,"Jefferson (031)","Hardy (031)","Douglas (031)","Platte (031)"]
[null,"Colbert (033)",null,null,"Crawford (033)","Lake (033)","Denver (031)",null,null,null,"Escambia (033)","Burke (033)",null,null,"Clark (033)","Crawford (033)","DeKalb (033)","Cerro Gordo (033)","Comanche (033)","Caldwell (033)","East Baton Rouge (033)","Washington (029)","Queen Anne's (035)",null,"Chippewa (033)","Cottonwood (033)","DeSoto (033)","Carroll (033)","Garfield (033)","Cheyenne (033)","Southeast Nye (035)",null,null,"McKinley (031)","Franklin (033)","Caswell (033)","Golden Valley (033)","Crawford (033)","Cotton (033)","Josephine (033)","Clearfield (033)",null,"Dillon (033)","Davison (035)","Crockett (033)","Borden (033)","Rich (033)",null,"Caroline (033)",null,"South King (033)","Harrison (033)","Dunn (033)","Sheridan (033)"]
[null,"Conecuh (035)",null,null,"Crittenden (035)","Lassen (035)","Dolores (033)",null,null,null,"Flagler (035)","Butts (035)",null,null,"Clearwater (035)","Cumberland (035)","Delaware (035)","Cherokee (035)","Cowley (035)","Calloway (035)","East Carroll (035)","York (031)","St. Mary's (037)",null,"Clare (035)","Crow Wing (035)","Forrest (035)","Carter (035)","Glacier (035)","Clay (035)","Carson City (510)",null,null,"Mora (033)","Fulton (035)","Catawba (035)","Grand Forks (035)","Cuyahoga (035)","Craig (035)","Klamath (035)","Clinton (035)",null,"Dorchester (035)","Day (037)","Cumberland (035)","Bosque (035)","Salt Lake (035)",null,"Carroll, East Galax City (035)",null,"Kitsap (035)","Jackson (035)","Eau Claire (035)","Sublette (035)"]
[null,"Coosa (037)",null,null,"Cross (037)","Los Angeles (037)","Douglas (035)",null,null,null,"Franklin (037)","Calhoun (037)",null,null,"South Custer (037)","DeKalb (037)","Dubois (037)","Chickasaw (037)","Crawford (037)","Campbell (037)","East Feliciana (037)",null,"Somerset (039)",null,"Clinton (037)","Dakota (037)","Franklin (037)","Cass (037)","Golden Valley (037)","Colfax (037)",null,null,null,"Otero (035)","Genesee (037)","Chatham (037)","Grant (037)","Darke (037)","Creek (037)","Lake (037)","Columbia (037)",null,"Edgefield (037)","Deuel (039)","Davidson (037)","Bowie (037)","San Juan (037)",null,"Charles City (036)",null,"Kittitas (037)","Jefferson (037)","Florence (037)","Sweetwater (037)"]
[null,"Covington (039)",null,null,"Dallas (039)","Madera (039)","Eagle (037)",null,null,null,"Gadsden (039)","Camden (039)",null,null,"Elmore (039)","DeWitt (039)","Elkhart (039)","Clarke (039)","Decatur (039)","Carlisle (039)","Evangeline (039)",null,"Talbot (041)",null,"Crawford (039)","Dodge (039)","George (039)","Cedar (039)","Granite (039)","Cuming (039)",null,null,null,"Quay (037)","Greene (039)","Cherokee (039)","Griggs (039)","Defiance (039)","Custer (039)","Lane (039)","Crawford (039)",null,"Fairfield (039)","Dewey (041)","Decatur (039)","Brazoria (039)","Sanpete (039)",null,"Charlotte (037)",null,"Klickitat (039)","Kanawha (039)","Fond du Lac (039)","Teton (039)"]
[null,"Crenshaw (041)",null,null,"Desha (041)","Marin (041)","Elbert (039)",null,null,null,"Gilchrist (041)","Candler (043)",null,null,"Franklin (041)","Douglas (041)","Fayette (041)","Clay (041)","Dickinson (041)","Carroll (041)","Franklin (041)",null,"Washington (043)",null,"Delta (041)","Douglas (041)","Greene (041)","Chariton (041)","Hill (041)","Custer (041)",null,null,null,"Rio Arriba (039)","Hamilton (041)","Chowan (041)","Hettinger (041)","Delaware (041)","Delaware (041)","Lincoln (041)","Cumberland (041)",null,"Florence (041)","Douglas (043)","DeKalb (041)","Brazos (041)","Sevier (041)",null,"Chesterfield (041)",null,"Lewis (041)","Lewis (041)","Forest (041)","Uinta (041)"]
[null,"Cullman (043)",null,null,"Drew (043)","Mariposa (043)","El Paso (041)",null,null,null,"Glades (043)","Carroll (045)",null,null,"Fremont (043)","DuPage (043)","Floyd (043)","Clayton (043)","Doniphan (043)","Carter (043)","Grant (043)",null,"Wicomico (045)",null,"Dickinson (043)","Faribault (043)","Grenada (043)","Christian (043)","Jefferson (043)","Dakota (043)",null,null,null,"Roosevelt (041)","Herkimer (043)","Clay (043)","Kidder (043)","Erie (043)","Dewey (043)","Linn (043)","Dauphin (043)",null,"Georgetown (043)","Edmunds (045)","Dickson (043)","Brewster (043)","Summit (043)",null,"Clarke (043)",null,"Lincoln (043)","Lincoln (043)","Grant (043)","Washakie (043)"]
[null,"Dale (045)",null,null,"Faulkner (045)","Mendocino (045)","Fremont (043)",null,null,null,"Gulf (045)","Catoosa (047)",null,null,"Gem (045)","Edgar (045)","Fountain (045)","Clinton (045)","Douglas (045)","Casey (045)","Iberia (045)",null,"Worcester (047)",null,"Eaton (045)","Fillmore (045)","Hancock (045)","Clark (045)","Judith Basin (045)","Dawes, North Sioux (045)",null,null,null,"Sandoval (043)","Jefferson (045)","Cleveland (045)","LaMoure (045)","Fairfield (045)","Ellis (045)","Malheur (045)","Delaware (045)",null,"Greenville (045)","Fall River (047)","Dyer (045)","Briscoe (045)","Tooele (045)",null,"Craig (045)",null,"Mason (045)","Logan, Mingo (045)","Green (045)","Weston (045)"]
[null,"Dallas (047)",null,null,"Franklin (047)","Merced (047)","Garfield (045)",null,null,null,"Hamilton (047)","Charlton (049)",null,null,"Gooding (047)","Edwards (047)","Franklin (047)","Crawford (047)","Edwards (047)","Christian (047)","Iberville (047)",null,"Baltimore (510)",null,"Emmet (047)","Freeborn (047)","Harrison (047)","Clay (047)","Lake (047)","Dawson (047)",null,null,null,"San Juan (045)","Kings (047)","Columbus (047)","Logan (047)","Fayette (047)","Garfield (047)","Marion (047)","Elk (047)",null,"Greenwood (047)","Faulk (049)","Fayette (047)","Brooks (047)","Uintah (047)",null,"Culpeper (047)",null,"Okanogan (047)","Marion (049)","Green Lake (047)"]
[null,"DeKalb (049)",null,null,"Fulton (049)","Modoc (049)","Gilpin (047)",null,null,null,"Hardee (049)","Chatham (051)",null,null,"Idaho (049)","Effingham (049)","Fulton (049)","Dallas (049)","Elk (049)","Clark (049)","Jackson (049)",null,null,null,"Genesee (049)","Goodhue (049)","Hinds (049)","Clinton (049)","Lewis and Clark (049)","Deuel (049)",null,null,null,"San Miguel (047)","Lewis (049)","Craven (049)","McHenry (049)","Franklin (049)","Garvin (049)","Morrow (049)","Erie (049)",null,"Hampton (049)","Grant (051)","Fentress (049)","Brown (049)","Utah (049)",null,"Cumberland (049)",null,"Pacific (049)","Marshall (051)","Iowa (049)"]
[null,"Elmore (051)",null,null,"Garland (051)","Mono (051)","Grand (049)",null,null,null,"Hendry (051)","Chattahoochee (053)",null,null,"Jefferson (051)","Fayette (051)","Gibson (051)","Davis (051)","Ellis (051)","Clay (051)","Jefferson (051)",null,null,null,"Gladwin (051)","Grant (051)","Holmes (051)","Cole (051)","Liberty (051)","Dixon (051)",null,null,null,"Santa Fe (049)","Livingston (051)","Cumberland (051)","McIntosh (051)","Fulton (051)","Grady (051)","Multnomah (051)","Fayette (051)",null,"Horry (051)","Gregory (053)","Franklin (051)","Burleson (051)","Wasatch (051)",null,"Dickenson (051)",null,"Pend Oreille (051)","Mason (053)","Iron (051)"]
[null,"Escambia (053)",null,null,"Grant (053)","Monterey (053)","Gunnison (051)",null,null,null,"Hernando (053)","Chattooga (055)",null,null,"Jerome (053)","Ford (053)","Grant (053)","Decatur (053)","Ellsworth (053)","Clinton (053)","Jefferson Davis (053)",null,null,null,"Gogebic (053)","Hennepin (053)","Humphreys (053)","Cooper (053)","Lincoln (053)","Dodge (053)",null,null,null,"Sierra (051)","Madison (053)","Currituck (053)","McKenzie (053)","Gallia (053)","Grant (053)","Polk (053)","Forest (053)",null,"Jasper (053)","Haakon (055)","Gibson (053)","Burnet (053)","Washington (053)",null,"Dinwiddie, Petersburg City (053)",null,"Pierce (053)","Mercer, McDowell (055)","Jackson (053)"]
[null,"Etowah (055)",null,null,"Greene (055)","Napa (055)","Hinsdale (053)",null,null,null,"Highlands (055)","Cherokee (057)",null,null,"Kootenai, North Shoshone (055)","Franklin (055)","Greene (055)","Delaware (055)","Finney (055)","Crittenden (055)","Lafayette (055)",null,null,null,"Grand Traverse (055)","Houston (055)","Issaquena (055)","Crawford (055)","McCone (055)","Douglas (055)",null,null,null,"Socorro (053)","Monroe (055)","Dare (055)","McLean (055)","Geauga (055)","Greer (055)","Sherman (055)","Franklin (055)",null,"Kershaw (055)","Hamlin (057)","Giles (055)","Caldwell (055)","Wayne (055)",null,"Essex (057)",null,"San Juan (055)","Mineral (057)","Jefferson (055)"]
[null,"Fayette (057)",null,null,"Hempstead (057)","Nevada (057)","Huerfano (055)",null,null,null,"Hillsborough (057)","Clarke (059)",null,null,"Latah (057)","Fulton (057)","Hamilton (057)","Des Moines (057)","Ford (057)","Cumberland (057)","Lafourche (057)",null,null,null,"Gratiot (057)","Hubbard (057)","Itawamba (057)","Dade (057)","Madison (057)","Dundy (057)",null,null,null,"Taos (055)","Montgomery (057)","Davidson (057)","Mercer (057)","Greene (057)","Harmon (057)","Tillamook (057)","Fulton (057)",null,"Lancaster (057)","Hand (059)","Grainger (057)","Calhoun (057)","Weber (057)",null,"Fairfax (059)",null,"Skagit (057)","Monongalia (061)","Juneau (057)"]
[null,"Franklin (059)",null,null,"Hot Spring (059)","Orange (059)","Jackson (057)",null,null,null,"Holmes (059)","Clay (061)",null,null,"Lemhi, North Custer (059)","Gallatin (059)","Hancock (059)","Dickinson (059)","Franklin (059)","Daviess (059)","La Salle (059)",null,null,null,"Hillsdale (059)","Isanti (059)","Jackson (059)","Dallas (059)","Meagher (059)","Fillmore (059)",null,null,null,"Torrance (057)","New York (061)","Davie (059)","Morton (059)","Guernsey (059)","Harper (059)","Umatilla (059)","Greene (059)",null,"Laurens (059)","Hanson (061)","Greene (059)","Callahan (059)",null,null,"Fauquier (061)",null,"Skamania (059)","Monroe (063)","Kenosha (059)"]
[null,"Geneva (061)",null,null,"Howard (061)","Placer (061)","Jefferson (059)",null,null,null,"Indian River (061)","Clayton (063)",null,null,"Lewis (061)","Greene (061)","Harrison (061)","Dubuque (061)","Geary (061)","Edmonson (061)","Lincoln (061)",null,null,null,"Houghton (061)","Itasca (061)","Jasper (061)","Daviess (061)","Mineral (061)","Franklin (061)",null,null,null,"Union (059)","Niagara (063)","Duplin (061)","Mountrail (061)","Hamilton (061)","Haskell (061)","Union (061)","Huntingdon (061)",null,"Lee (061)","Harding (063)","Grundy (061)","Cameron (061)",null,null,"Floyd (063)",null,"Snohomish, North King (061)","Morgan (065)","Kewaunee (061)"]
[null,"Greene (063)",null,null,"Independence (063)","Plumas (063)","Kiowa (061)",null,null,null,"Jackson (063)","Clinch (065)",null,null,"Lincoln (063)","Grundy (063)","Hendricks (063)","Emmet (063)","Gove (063)","Elliott (063)","Livingston (063)",null,null,null,"Huron (063)","Jackson (063)","Jefferson (063)","DeKalb (063)","Missoula (063)","Frontier (063)",null,null,null,"Valencia (061)","Oneida (065)","Durham (063)","Nelson (063)","Hancock (063)","Hughes (063)","Wallowa (063)","Indiana (063)",null,"Lexington (063)","Hughes (065)","Hamblen (063)","Camp (063)",null,null,"Fluvanna (065)",null,"Spokane (063)","Nicholas (067)","La Crosse (063)"]
[null,"Hale (065)",null,null,"Izard (065)","Riverside (065)","Kit Carson (063)",null,null,null,"Jefferson (065)","Cobb (067)",null,null,"Madison (065)","Hamilton (065)","Henry (065)","Fayette (065)","Graham (065)","Estill (065)","Madison (065)",null,null,null,"Ingham (065)","Kanabec (065)","Jefferson Davis (065)","Dent (065)","Musselshell (065)","Furnas (065)",null,null,null,null,"Onondaga (067)","Edgecombe (065)","Oliver (065)","Hardin (065)","Jackson (065)","Wasco (065)","Jefferson (065)",null,"McCormick (065)","Hutchinson (067)","Hamilton (065)","Carson (065)",null,null,"Franklin (067)",null,"Stevens (065)","Ohio (069)","Lafayette (065)"]
[null,"Henry (067)",null,null,"Jackson (067)","Sacramento (067)","Lake (065)",null,null,null,"Lafayette (067)","Coffee (069)",null,null,"Minidoka (067)","Hancock (067)","Howard (067)","Floyd (067)","Grant (067)","Fayette (067)","Morehouse (067)",null,null,null,"Ionia (067)","Kandiyohi (067)","Jones (067)","Douglas (067)","Park (067)","Gage (067)",null,null,null,null,"Ontario (069)","Forsyth (067)","Pembina (067)","Harrison (067)","Jefferson (067)","Washington (067)","Juniata (067)",null,"Marion (067)","Hyde (069)","Hancock (067)","Cass (067)",null,null,"Frederick, Winchester City (069)",null,"Thurston (067)","Pendleton (071)","Langlade (067)"]
[null,"Houston (069)",null,null,"Jefferson (069)","San Benito (069)","La Plata (067)",null,null,null,"Lake (069)","Colquitt (071)",null,null,"Nez Perce (069)","Hardin (069)","Huntington (069)","Franklin (069)","Gray (069)","Fleming (069)","Natchitoches (069)",null,null,null,"Iosco (069)","Kittson (069)","Kemper (069)","Dunklin (069)","Petroleum (069)","Garden (069)",null,null,null,null,"Orange, Rockland (071)","Franklin (069)","Pierce (069)","Henry (069)","Johnston (069)","Wheeler (069)","Lackawanna (069)",null,"Marlboro (069)","Jackson (071)","Hardeman (069)","Castro (069)",null,null,"Giles (071)",null,"Wahkiakum (069)","Pleasants (073)","Lincoln (069)"]
[null,"Jackson (071)",null,null,"Johnson (071)","San Bernardino (071)","Larimer (069)",null,null,null,"Lee (071)","Columbia (073)",null,null,"Oneida (071)","Henderson (071)","Jackson (071)","Fremont (071)","Greeley (071)","Floyd (071)","Orleans (071)",null,null,null,"Iron (071)","Koochiching (071)","Lafayette (071)","Franklin (071)","Phillips (071)","Garfield (071)",null,null,null,null,"Orleans (073)","Gaston (071)","Ramsey (071)","Highland (071)","Kay (071)","Yamhill (071)","Lancaster (071)",null,"Newberry (071)","Jerauld (073)","Hardin (071)","Chambers (071)",null,null,"Gloucester (073)",null,"Walla Walla (071)","Pocahontas (075)","Manitowoc (071)"]
[null,"Jefferson (073)",null,null,"Lafayette (073)","San Diego (073)","Las Animas (071)",null,null,null,"Leon (073)","Cook (075)",null,null,"Owyhee (073)","Henry (073)","Jasper (073)","Greene (073)","Greenwood (073)","Franklin (073)","Ouachita (073)",null,null,null,"Isabella (073)","Lac qui Parle (073)","Lamar (073)","Gasconade (073)","Pondera (073)","Gosper (073)",null,null,null,null,"Oswego (075)","Gates (073)","Ransom (073)","Hocking (073)","Kingfisher (073)",null,"Lawrence (073)",null,"Oconee (073)","Jones (075)","Hawkins (073)","Cherokee (073)",null,null,"Goochland (075)",null,"Whatcom (073)","Preston (077)","Marathon (073)"]
[null,"Lamar (075)",null,null,"Lawrence (075)","San Joaquin (077)","Lincoln (073)",null,null,null,"Levy (075)","Coweta (077)",null,null,"Payette (075)","Iroquois (075)","Jay (075)","Grundy (075)","Hamilton (075)","Fulton (075)","Plaquemines (075)",null,null,null,"Jackson (075)","Lake (075)","Lauderdale (075)","Gentry (075)","Powder River (075)","Grant (075)",null,null,null,null,"Otsego (077)","Graham (075)","Renville (075)","Holmes (075)","Kiowa (075)",null,"Lebanon (075)",null,"Orangeburg (075)","Kingsbury (077)","Haywood (075)","Childress (075)",null,null,"Grayson, West Galax City (077)",null,"Whitman (075)","Putnam (079)","Marinette (075)"]
[null,"Lauderdale (077)",null,null,"Lee (077)","San Luis Obispo (079)","Logan (075)",null,null,null,"Liberty (077)","Crawford (079)",null,null,"Power (077)","Jackson (077)","Jefferson (077)","Guthrie (077)","Harper (077)","Gallatin (077)","Pointe Coupee (077)",null,null,null,"Kalamazoo (077)","Lake of the Woods (077)","Lawrence (077)","Greene (077)","Powell (077)","Greeley (077)",null,null,null,null,"Putnam (079)","Granville (077)","Richland (077)","Huron (077)","Latimer (077)",null,"Lehigh (077)",null,"Pickens (077)","Lake (079)","Henderson (077)","Clay (077)",null,null,"Greene (079)",null,"Yakima (077)","Raleigh (081)","Marquette (077)"]
[null,"Lawrence (079)",null,null,"Lincoln (079)","San Mateo (081)","Mesa (077)",null,null,null,"Madison (079)","Crisp (081)",null,null,"Teton (081)","Jasper (079)","Jennings (079)","Hamilton (079)","Harvey (079)","Garrard (079)","Rapides (079)",null,null,null,"Kalkaska (079)","Le Sueur (079)","Leake (079)","Grundy (079)","Prairie (079)","Hall (079)",null,null,null,null,"Queens (081)","Greene (079)","Rolette (079)","Jackson (079)","Le Flore (079)",null,"Luzerne (079)",null,"Richland (079)","Lawrence (081)","Henry (079)","Cochran (079)",null,null,"Greensville, Emporia City (081)",null,null,"Randolph (083)","Menominee (078)"]
[null,"Lee (081)",null,null,"Little River (081)","Santa Barbara (083)","Mineral (079)",null,null,null,"Manatee (081)","Dade (083)",null,null,"Twin Falls (083)","Jefferson (081)","Johnson (081)","Hancock (081)","Haskell (081)","Grant (081)","Red River (081)",null,null,null,"Kent (081)","Lincoln (081)","Lee (081)","Harrison (081)","Ravalli (081)","Hamilton (081)",null,null,null,null,"Rensselaer (083)","Guilford (081)","Sargent (081)","Jefferson (081)","Lincoln (081)",null,"Lycoming (081)",null,"Saluda (081)","Lincoln (083)","Hickman (081)","Coke (081)",null,null,"Halifax (083)",null,null,"Ritchie (085)","Milwaukee (079)"]
[null,"Limestone (083)",null,null,"Logan (083)","Santa Clara (085)","Moffat (081)",null,null,null,"Marion (083)","Dawson (085)",null,null,"Valley (085)","Jersey (083)","Knox (083)","Hardin (083)","Hodgeman (083)","Graves (083)","Richland (083)",null,null,null,"Keweenaw (083)","Lyon (083)","Leflore (083)","Henry (083)","Richland (083)","Harlan (083)",null,null,null,null,"Richmond (085)","Halifax (083)","Sheridan (083)","Knox (083)","Logan (083)",null,"McKean (083)",null,"Spartanburg (083)","Lyman (085)","Houston (083)","Coleman (083)",null,null,"Hanover (085)",null,null,"Roane (087)","Monroe (081)"]
[null,"Lowndes (085)",null,null,"Lonoke (085)","Santa Cruz (087)","Montezuma (083)",null,null,null,"Martin (085)","Decatur (087)",null,null,"Washington (087)","Jo Daviess (085)","Kosciusko (085)","Harrison (085)","Jackson (085)","Grayson (085)","Sabine (085)",null,null,null,"Lake (085)","McLeod (085)","Lincoln (085)","Hickory (085)","Roosevelt (085)","Hayes (085)",null,null,null,null,"St. Lawrence (089)","Harnett (085)","Sioux (085)","Lake (085)","Love (085)",null,"Mercer (085)",null,"Sumter (085)","McCook (087)","Humphreys (085)","Collin (085)",null,null,"Henrico, Richmond City (087)",null,null,"Summers (089)","Oconto (083)"]
[null,"Macon (087)",null,null,"Madison (087)","Shasta (089)","Montrose (085)",null,null,null,"Nassau (089)","DeKalb (089)",null,null,null,"Johnson (087)","LaGrange (087)","Henry (087)","Jefferson (087)","Green (087)","St. Bernard (087)",null,null,null,"Lapeer (087)","Mahnomen (087)","Lowndes (087)","Holt (087)","Rosebud (087)","Hitchcock (087)",null,null,null,null,"Saratoga (091)","Haywood (087)","Slope (087)","Lawrence (087)","McClain (087)",null,"Mifflin (087)",null,"Union (087)","McPherson (089)","Jackson (087)","Collingsworth (087)",null,null,"Henry, Martinsville City (089)",null,null,"Taylor (091)","Oneida (085)"]
[null,"Madison (089)",null,null,"Marion (089)","Sierra (091)","Morgan (087)",null,null,null,"Okaloosa (091)","Dodge (091)",null,null,null,"Kane (089)","Lake (089)","Howard (089)","Jewell (089)","Greenup (089)","St. Charles (089)",null,null,null,"Leelanau (089)","Marshall (089)","Madison (089)","Howard (089)","Sanders (089)","Holt (089)",null,null,null,null,"Schenectady (093)","Henderson (089)","Stark (089)","Licking (089)","McCurtain (089)",null,"Monroe (089)",null,"Williamsburg (089)","Marshall (091)","Jefferson (089)","Colorado (089)",null,null,"Highland (091)",null,null,"Tucker (093)","Outagamie (087)"]
[null,"Marengo (091)",null,null,"Miller (091)","Siskiyou (093)","Otero (089)",null,null,null,"Okeechobee (093)","Dooly (093)",null,null,null,"Kankakee (091)","LaPorte (091)","Humboldt (091)","Johnson (091)","Hancock (091)","St. Helena (091)",null,null,null,"Lenawee (091)","Martin (091)","Marion (091)","Howell (091)","Sheridan (091)","Hooker (091)",null,null,null,null,"Schoharie (095)","Hertford (091)","Steele (091)","Logan (091)","McIntosh (091)",null,"Montgomery (091)",null,"York (091)","Meade (093)","Johnson (091)","Comal (091)",null,null,"Isle of Wight (093)",null,null,"Tyler (095)","Ozaukee (089)"]
[null,"Marion (093)",null,null,"Mississippi (093)","Solano (095)","Ouray (091)",null,null,null,"Orange (095)","Dougherty (095)",null,null,null,"Kendall (093)","Lawrence (093)","Ida (093)","Kearny (093)","Hardin (093)","St. James (093)",null,null,null,"Livingston (093)","Meeker (093)","Marshall (093)","Iron (093)","Silver Bow (093)","Howard (093)",null,null,null,null,"Schuyler (097)","Hoke (093)","Stutsman (093)","Lorain (093)","Major (093)",null,"Montour (093)",null,null,"Mellette (095)","Knox (093)","Comanche (093)",null,null,"James City, Williamsburg City (095)",null,null,"Upshur (097)","Pepin (091)"]
[null,"Marshall (095)",null,null,"Monroe (095)","Sonoma (097)","Park (093)",null,null,null,"Osceola (097)","Douglas (097)",null,null,null,"Knox (095)","Madison (095)","Iowa (095)","Kingman (095)","Harlan (095)","St. John the Baptist (095)",null,null,null,"Luce (095)","Mille Lacs (095)","Monroe (095)","Jackson (095)","Stillwater (095)","Jefferson (095)",null,null,null,null,"Seneca (099)","Hyde (095)","Towner (095)","East Lucas (094)","Marshall (095)",null,"Northampton (095)",null,null,"Miner (097)","Lake (095)","Concho (095)",null,null,"King and Queen (097)",null,null,"Wayne (099)","Pierce (093)"]
[null,"Mobile (097)",null,null,"Montgomery (097)","Stanislaus (099)","Phillips (095)",null,null,null,"Palm Beach (099)","Early (099)",null,null,null,"Lake (097)","Marion (097)","Jackson (097)","Kiowa (097)","Harrison (097)","St. Landry (097)",null,null,null,"Mackinac (097)","Morrison (097)","Montgomery (097)","Jasper (097)","Sweet Grass (097)","Johnson (097)",null,null,null,null,"Steuben (101)","Iredell (097)","Traill (097)","West Lucas (095)","Mayes (097)",null,"Northumberland (097)",null,null,"Minnehaha (099)","Lauderdale (097)","Cooke (097)",null,null,"King George (099)",null,null,"Webster (101)","Polk (095)"]
[null,"Monroe (099)",null,null,"Nevada (099)","Sutter (101)","Pitkin (097)",null,null,null,"Pasco (101)","Echols (101)",null,null,null,"LaSalle (099)","Marshall (099)","Jasper (099)","Labette (099)","Hart (099)","St. Martin (099)",null,null,null,"Macomb (099)","Mower (099)","Neshoba (099)","Jefferson (099)","Teton (099)","Kearney (099)",null,null,null,null,"Suffolk, Nassau (103)","Jackson (099)","Walsh (099)","Madison (097)","Murray (099)",null,"Perry (099)",null,null,"Moody (101)","Lawrence (099)","Coryell (099)",null,null,"King William (101)",null,null,"Wetzel (103)","Portage (097)"]
[null,"Montgomery (101)",null,null,"Newton (101)","Tehama (103)","Prowers (099)",null,null,null,"Pinellas (103)","Effingham (103)",null,null,null,"Lawrence (101)","Martin (101)","Jefferson (101)","Lane (101)","Henderson (101)","St. Mary (101)",null,null,null,"Manistee (101)","Murray (101)","Newton (101)","Johnson (101)","Toole (101)","Keith (101)",null,null,null,null,"Sullivan (105)","Johnston (101)","Ward (101)","Mahoning (099)","Muskogee (101)",null,"Philadelphia (101)",null,null,"Pennington (103)","Lewis (101)","Cottle (101)",null,null,"Lancaster (103)",null,null,"Wirt (105)","Price (099)"]
[null,"Morgan (103)",null,null,"Ouachita (103)","Trinity (105)","Pueblo (101)",null,null,null,"Polk (105)","Elbert (105)",null,null,null,"Lee (103)","Miami (103)","Johnson (103)","Leavenworth (103)","Henry (103)","St. Tammany (103)",null,null,null,"Marquette (103)","Nicollet (103)","Noxubee (103)","Knox (103)","Treasure (103)","Keya Paha (103)",null,null,null,null,"Tioga (107)","Jones (103)","Wells (103)","Marion (101)","Noble (103)",null,"Pike (103)",null,null,"Perkins (105)","Lincoln (103)","Crane (103)",null,null,"Lee (105)",null,null,"Wood (107)","Racine (101)"]
[null,"Perry (105)",null,null,"Perry (105)","Tulare (107)","Rio Blanco (103)",null,null,null,"Putnam (107)","Emanuel (107)",null,null,null,"Livingston (105)","Monroe (105)","Jones (105)","Lincoln (105)","Hickman (105)","Tangipahoa (105)",null,null,null,"Mason (105)","Nobles (105)","Oktibbeha (105)","Laclede (105)","Valley (105)","Kimball (105)",null,null,null,null,"Tompkins (109)","Lee (105)","Williams (105)","Medina (103)","Nowata (105)",null,"Potter (105)",null,null,"Potter (107)","Loudon (105)","Crockett (105)",null,null,"Loudoun (107)",null,null,"Wyoming (109)","Richland (103)"]
[null,"Pickens (107)",null,null,"Phillips (107)","Tuolumne (109)","Rio Grande (105)",null,null,null,"St. Johns (109)","Evans (109)",null,null,null,"Logan (107)","Montgomery (107)","Keokuk (107)","Linn (107)","Hopkins (107)","Tensas (107)",null,null,null,"Mecosta (107)","Norman (107)","Panola (107)","Lafayette (107)","Wheatland (107)","Knox (107)",null,null,null,null,"Ulster (111)","Lenoir (107)",null,"Meigs (105)","Okfuskee (107)",null,"Schuylkill (107)",null,null,"Roberts (109)","McMinn (107)","Crosby (107)",null,null,"Louisa (109)",null,null,null,"Rock (105)"]
[null,"Pike (109)",null,null,"Pike (109)","Ventura (111)","Routt (107)",null,null,null,"St. Lucie (111)","Fannin (111)",null,null,null,"McDonough (109)","Morgan (109)","Kossuth (109)","Logan (109)","Jackson (109)","Terrebonne (109)",null,null,null,"Menominee (109)","Olmsted (109)","Pearl River (109)","Lawrence (109)","Wibaux (109)","Lancaster (109)",null,null,null,null,"Warren (113)","Lincoln (109)",null,"Mercer (107)","Oklahoma (109)",null,"Snyder (109)",null,null,"Sanborn (111)","McNairy (109)","Culberson (109)",null,null,"Lunenburg (111)",null,null,null,"Rusk (107)"]
[null,"Randolph (111)",null,null,"Poinsett (111)","Yolo (113)","Saguache (109)",null,null,null,"Santa Rosa (113)","Fayette (113)",null,null,null,"McHenry (111)","Newton (111)","Lee (111)","Lyon (111)","Jefferson (111)","Union (111)",null,null,null,"Midland (111)","East Otter Tail (111)","Perry (111)","Lewis (111)","Yellowstone (111)","Lincoln (111)",null,null,null,null,"Washington (115)","McDowell (111)",null,"Miami (109)","Okmulgee (111)",null,"Somerset (111)",null,null,"Oglala Lakota (113)","Macon (111)","Dallam (111)",null,null,"Madison (113)",null,null,null,"St. Croix (109)"]
[null,"Russell (113)",null,null,"Polk (113)","Yuba (115)","San Juan (111)",null,null,null,"Sarasota (115)","Floyd (115)",null,null,null,"McLean (113)","Noble (113)","Linn (113)","McPherson (113)","Jessamine (113)","Vermilion (113)",null,null,null,"Missaukee (113)","West Otter Tail (112)","Pike (113)","Lincoln (113)",null,"Logan (113)",null,null,null,null,"Wayne (117)","Macon (113)",null,"Monroe (111)","Osage (113)",null,"Sullivan (113)",null,null,"Spink (115)","Madison (113)","Dallas (113)",null,null,"Mathews (115)",null,null,null,"Sauk (111)"]
[null,"St. Clair (115)",null,null,"Pope (115)",null,"San Miguel (113)",null,null,null,"Seminole (117)","Forsyth (117)",null,null,null,"Macon (115)","Ohio (115)","Louisa (115)","Marion (115)","Johnson (115)","Vernon (115)",null,null,null,"Monroe (115)","Pennington (113)","Pontotoc (115)","Linn (115)",null,"Loup (115)",null,null,null,null,"Westchester (119)","Madison (115)",null,"Montgomery (113)","Ottawa (115)",null,"Susquehanna (115)",null,null,"Stanley (117)","Marion (115)","Dawson (115)",null,null,"Mecklenburg (117)",null,null,null,"Sawyer (113)"]
[null,"Shelby (117)",null,null,"Prairie (117)",null,"Sedgwick (115)",null,null,null,"Sumter (119)","Franklin (119)",null,null,null,"Macoupin (117)","Orange (117)","Lucas (117)","Marshall (117)","Kenton (117)","Washington (117)",null,null,null,"Montcalm (117)","Pine (115)","Prentiss (117)","Livingston (117)",null,"McPherson (117)",null,null,null,null,"Wyoming (121)","Martin (117)",null,"Morgan (115)","Pawnee (117)",null,"Tioga (117)",null,null,"Sully (119)","Marshall (117)","Deaf Smith (117)",null,null,"Middlesex (119)",null,null,null,"Shawano (115)"]
[null,"Sumter (119)",null,null,"Pulaski (119)",null,"Summit (117)",null,null,null,"Suwannee (121)","Fulton (121)",null,null,null,"Madison (119)","Owen (119)","Lyon (119)","Meade (119)","Knott (119)","Webster (119)",null,null,null,"Montmorency (119)","Pipestone (117)","Quitman (119)","McDonald (119)",null,"Madison (119)",null,null,null,null,"Yates (123)","Mecklenburg (119)",null,"Morrow (117)","Payne (119)",null,"Union (119)",null,null,"Todd (121)","Maury (119)","Delta (119)",null,null,"Montgomery, Radford City (121)",null,null,null,"Sheboygan (117)"]
[null,"Talladega (121)",null,null,"Randolph (121)",null,"Teller (119)",null,null,null,"Taylor (123)","Gilmer (123)",null,null,null,"Marion (121)","Parke (121)","Madison (121)","Miami (121)","Knox (121)","West Baton Rouge (121)",null,null,null,"Muskegon (121)","East Polk (119)","Rankin (121)","Macon (121)",null,"Merrick (121)",null,null,null,null,null,"Mitchell (121)",null,"Muskingum (119)","Pittsburg (121)",null,"Venango (121)",null,null,"Tripp (123)","Meigs (121)","Denton (121)",null,null,"Nelson (125)",null,null,null,"Taylor (119)"]
[null,"Tallapoosa (123)",null,null,"St. Francis (123)",null,"Washington (121)",null,null,null,"Union (125)","Glascock (125)",null,null,null,"Marshall (123)","Perry (123)","Mahaska (123)","Mitchell (123)","Larue (123)","West Carroll (123)",null,null,null,"Newaygo (123)","West Polk (120)","Scott (123)","Madison (123)",null,"Morrill (123)",null,null,null,null,null,"Montgomery (123)",null,"Noble (121)","Pontotoc (123)",null,"Warren (123)",null,null,"Turner (125)","Monroe (123)","DeWitt (123)",null,null,"New Kent (127)",null,null,null,"Trempealeau (121)"]
[null,"Tuscaloosa (125)",null,null,"Saline (125)",null,"Weld (123)",null,null,null,"Volusia (127)","Glynn (127)",null,null,null,"Mason (125)","Pike (125)","Marion (125)","Montgomery (125)","Laurel (125)","West Feliciana (125)",null,null,null,"Oakland (125)","Pope (121)","Sharkey (125)","Maries (125)",null,"Nance (125)",null,null,null,null,null,"Moore (125)",null,"Ottawa (123)","Pottawatomie (125)",null,"Washington (125)",null,null,"Union (127)","Montgomery (125)","Dickens (125)",null,null,"Northampton (131)",null,null,null,"Vernon (123)"]
[null,"Walker (127)",null,null,"Scott (127)",null,"Yuma (125)",null,null,null,"Wakulla (129)","Gordon (129)",null,null,null,"Massac (127)","Porter (127)","Marshall (127)","Morris (127)","Lawrence (127)","Winn (127)",null,null,null,"Oceana (127)","Ramsey (123)","Simpson (127)","Marion (127)",null,"Nemaha (127)",null,null,null,null,null,"Nash (127)",null,"Paulding (125)","Pushmataha (127)",null,"Wayne (127)",null,null,"Walworth (129)","Moore (127)","Dimmit (127)",null,null,"Northumberland (133)",null,null,null,"Vilas (125)"]
[null,"Washington (129)",null,null,"Searcy (129)",null,null,null,null,null,"Walton (131)","Grady (131)",null,null,null,"Menard (129)","Posey (129)","Mills (129)","Morton (129)","Lee (129)",null,null,null,null,"Ogemaw (129)","Red Lake (125)","Smith (129)","Mercer (129)",null,"Nuckolls (129)",null,null,null,null,null,"New Hanover (129)",null,"Perry (127)","Roger Mills (129)",null,"Westmoreland (129)",null,null,"Yankton (135)","Morgan (129)","Donley (129)",null,null,"Nottoway (135)",null,null,null,"Walworth (127)"]
[null,"Wilcox (131)",null,null,"Sebastian (131)",null,null,null,null,null,"Washington (133)","Greene (133)",null,null,null,"Mercer (131)","Pulaski (131)","Mitchell (131)","Nemaha (131)","Leslie (131)",null,null,null,null,"Ontonagon (131)","Redwood (127)","Stone (131)","Miller (131)",null,"Otoe (131)",null,null,null,null,null,"Northampton (131)",null,"Pickaway (129)","Rogers (131)",null,"Wyoming (131)",null,null,"Ziebach (137)","Obion (131)","Duval (131)",null,null,"Orange (137)",null,null,null,"Washburn (129)"]
[null,"Winston (133)",null,null,"Sevier (133)",null,null,null,null,null,null,"Gwinnett (135)",null,null,null,"Monroe (133)","Putnam (133)","Monona (133)","Neosho (133)","Letcher (133)",null,null,null,null,"Osceola (133)","Renville (129)","Sunflower (133)","Mississippi (133)",null,"Pawnee (133)",null,null,null,null,null,"Onslow (133)",null,"Pike (131)","Seminole (133)",null,"York (133)",null,null,null,"Overton (133)","Eastland (133)",null,null,"Page (139)",null,null,null,"Washington (131)"]
[null,null,null,null,"Sharp (135)",null,null,null,null,null,null,"Habersham (137)",null,null,null,"Montgomery (135)","Randolph (135)","Monroe (135)","Ness (135)","Lewis (135)",null,null,null,null,"Oscoda (135)","Rice (131)","Tallahatchie (135)","Moniteau (135)",null,"Perkins (135)",null,null,null,null,null,"Orange (135)",null,"Portage (133)","Sequoyah (135)",null,null,null,null,null,"Perry (135)","Ector (135)",null,null,"Patrick (141)",null,null,null,"Waukesha (133)"]
[null,null,null,null,"Stone (137)",null,null,null,null,null,null,"Hall (139)",null,null,null,"Morgan (137)","Ripley (137)","Montgomery (137)","Norton (137)","Lincoln (137)",null,null,null,null,"Otsego (137)","Rock (133)","Tate (137)","Monroe (137)",null,"Phelps (137)",null,null,null,null,null,"Pamlico (137)",null,"Preble (135)","Stephens (137)",null,null,null,null,null,"Pickett (137)","Edwards (137)",null,null,"Pittsylvania (143)",null,null,null,"Waupaca (135)"]
[null,null,null,null,"Union (139)",null,null,null,null,null,null,"Hancock (141)",null,null,null,"Moultrie (139)","Rush (139)","Muscatine (139)","Osage (139)","Livingston (139)",null,null,null,null,"Ottawa (139)","Roseau (135)","Tippah (139)","Montgomery (139)",null,"Pierce (139)",null,null,null,null,null,"Pasquotank (139)",null,"Putnam (137)","Texas (139)",null,null,null,null,null,"Polk (139)","Ellis (139)",null,null,"Powhatan (145)",null,null,null,"Waushara (137)"]
[null,null,null,null,"Van Buren (141)",null,null,null,null,null,null,"Haralson (143)",null,null,null,"Ogle (141)","St. Joseph (141)","O'Brien (141)","Osborne (141)","Logan (141)",null,null,null,null,"Presque Isle (141)","North St. Louis (137)","Tishomingo (141)","Morgan (141)",null,"Platte (141)",null,null,null,null,null,"Pender (141)",null,"Richland (139)","Tillman (141)",null,null,null,null,null,"Putnam (141)","El Paso (141)",null,null,"Prince Edward (147)",null,null,null,"Winnebago (139)"]
[null,null,null,null,"Washington (143)",null,null,null,null,null,null,"Harris (145)",null,null,null,"Peoria (143)","Scott (143)","Osceola (143)","Ottawa (143)","Lyon (143)",null,null,null,null,"Roscommon (143)","South St. Louis (138)","Tunica (143)","New Madrid (143)",null,"Polk (143)",null,null,null,null,null,"Perquimans (143)",null,"Ross (141)","Tulsa (143)",null,null,null,null,null,"Rhea (143)","Erath (143)",null,null,"Prince George (149)",null,null,null,"Wood (141)"]
[null,null,null,null,"White (145)",null,null,null,null,null,null,"Hart (147)",null,null,null,"Perry (145)","Shelby (145)","Page (145)","Pawnee (145)","McCracken (145)",null,null,null,null,"Saginaw (145)","Scott (139)","Union (145)","Newton (145)",null,"Red Willow (145)",null,null,null,null,null,"Person (145)",null,"Sandusky (143)","Wagoner (145)",null,null,null,null,null,"Roane (145)","Falls (145)",null,null,"Prince William (153)"]
[null,null,null,null,"Woodruff (147)",null,null,null,null,null,null,"Heard (149)",null,null,null,"Piatt (147)","Spencer (147)","Palo Alto (147)","Phillips (147)","McCreary (147)",null,null,null,null,"St. Clair (147)","Sherburne (141)","Walthall (147)","Nodaway (147)",null,"Richardson (147)",null,null,null,null,null,"Pitt (147)",null,"Scioto (145)","Washington (147)",null,null,null,null,null,"Robertson (147)","Fannin (147)",null,null,"Pulaski (155)"]
[null,null,null,null,"Yell (149)",null,null,null,null,null,null,"Henry (151)",null,null,null,"Pike (149)","Starke (149)","Plymouth (149)","Pottawatomie (149)","McLean (149)",null,null,null,null,"St. Joseph (149)","Sibley (143)","Warren (149)","Oregon (149)",null,"Rock (149)",null,null,null,null,null,"Polk (149)",null,"Seneca (147)","Washita (149)",null,null,null,null,null,"Rutherford (149)","Fayette (149)",null,null,"Rappahannock (157)"]
[null,null,null,null,null,null,null,null,null,null,null,"Houston (153)",null,null,null,"Pope (151)","Steuben (151)","Pocahontas (151)","Pratt (151)","Madison (151)",null,null,null,null,"Sanilac (151)","Stearns (145)","Washington (151)","Osage (151)",null,"Saline (151)",null,null,null,null,null,"Randolph (151)",null,"Shelby (149)","Woods (151)",null,null,null,null,null,"Scott (151)","Fisher (151)",null,null,"Richmond (159)"]
[null,null,null,null,null,null,null,null,null,null,null,"Irwin (155)",null,null,null,"Pulaski (153)","Sullivan (153)","Polk (153)","Rawlins (153)","Magoffin (153)",null,null,null,null,"Schoolcraft (153)","Steele (147)","Wayne (153)","Ozark (153)",null,"Sarpy (153)",null,null,null,null,null,"Richmond (153)",null,"Stark (151)","Woodward (153)",null,null,null,null,null,"Sequatchie (153)","Floyd (153)",null,null,"Roanoke, Roanoke City, Salem City (161)"]
[null,null,null,null,null,null,null,null,null,null,null,"Jackson (157)",null,null,null,"Putnam (155)","Switzerland (155)","East Pottawattamie (155)","Reno (155)","Marion (155)",null,null,null,null,"Shiawassee (155)","Stevens (149)","Webster (155)","Pemiscot (155)",null,"Saunders (155)",null,null,null,null,null,"Robeson (155)",null,"Summit (153)",null,null,null,null,null,null,"Sevier (155)","Foard (155)",null,null,"Rockbridge, Buena Vista City, Lexington City (163)"]
[null,null,null,null,null,null,null,null,null,null,null,"Jasper (159)",null,null,null,"Randolph (157)","Tippecanoe (157)","West Pottawattamie (156)","Republic (157)","Marshall (157)",null,null,null,null,"Tuscola (157)","Swift (151)","Wilkinson (157)","Perry (157)",null,"Scotts Bluff (157)",null,null,null,null,null,"Rockingham (157)",null,"Trumbull (155)",null,null,null,null,null,null,"Shelby (157)","Fort Bend (157)",null,null,"Rockingham, Harrisonburg City (165)"]
[null,null,null,null,null,null,null,null,null,null,null,"Jeff Davis (161)",null,null,null,"Richland (159)","Tipton (159)","Poweshiek (157)","Rice (159)","Martin (159)",null,null,null,null,"Van Buren (159)","Todd (153)","Winston (159)","Pettis (159)",null,"Seward (159)",null,null,null,null,null,"Rowan (159)",null,"Tuscarawas (157)",null,null,null,null,null,null,"Smith (159)","Franklin (159)",null,null,"Russell (167)"]
[null,null,null,null,null,null,null,null,null,null,null,"Jefferson (163)",null,null,null,"Rock Island (161)","Union (161)","Ringgold (159)","Riley (161)","Mason (161)",null,null,null,null,"Washtenaw (161)","Traverse (155)","Yalobusha (161)","Phelps (161)",null,"Sheridan (161)",null,null,null,null,null,"Rutherford (161)",null,"Union (159)",null,null,null,null,null,null,"Stewart (161)","Freestone (161)",null,null,"Scott (169)"]
[null,null,null,null,null,null,null,null,null,null,null,"Jenkins (165)",null,null,null,"St. Clair (163)","Vanderburgh (163)","Sac (161)","Rooks (163)","Meade (163)",null,null,null,null,"Wayne (163)","Wabasha (157)","Yazoo (163)","Pike (163)",null,"Sherman (163)",null,null,null,null,null,"Sampson (163)",null,"Van Wert (161)",null,null,null,null,null,null,"Sullivan (163)","Frio (163)",null,null,"Shenandoah (171)"]
[null,null,null,null,null,null,null,null,null,null,null,"Johnson (167)",null,null,null,"Saline (165)","Vermillion (165)","Scott (163)","Rush (165)","Menifee (165)",null,null,null,null,"Wexford (165)","Wadena (159)",null,"Platte (165)",null,"South Sioux (165)",null,null,null,null,null,"Scotland (165)",null,"Vinton (163)",null,null,null,null,null,null,"Sumner (165)","Gaines (165)",null,null,"Smyth (173)"]
[null,null,null,null,null,null,null,null,null,null,null,"Jones (169)",null,null,null,"Sangamon (167)","Vigo (167)","Shelby (165)","Russell (167)","Mercer (167)",null,null,null,null,null,"Waseca (161)",null,"Polk (167)",null,"Stanton (167)",null,null,null,null,null,"Stanly (167)",null,"Warren (165)",null,null,null,null,null,null,"Tipton (167)","Galveston (167)",null,null,"Southampton, Franklin City (175)"]
[null,null,null,null,null,null,null,null,null,null,null,"Lamar (171)",null,null,null,"Schuyler (169)","Wabash (169)","Sioux (167)","Saline (169)","Metcalfe (169)",null,null,null,null,null,"Washington (163)",null,"Pulaski (169)",null,"Thayer (169)",null,null,null,null,null,"Stokes (169)",null,"Washington (167)",null,null,null,null,null,null,"Trousdale (169)","Garza (169)",null,null,"Spotsylvania, Fredericksburg City (177)"]
[null,null,null,null,null,null,null,null,null,null,null,"Lanier (173)",null,null,null,"Scott (171)","Warren (171)","Story (169)","Scott (171)","Monroe (171)",null,null,null,null,null,"Watonwan (165)",null,"Putnam (171)",null,"Thomas (171)",null,null,null,null,null,"Surry (171)",null,"Wayne (169)",null,null,null,null,null,null,"Unicoi (171)","Gillespie (171)",null,null,"Stafford (179)"]
[null,null,null,null,null,null,null,null,null,null,null,"Laurens (175)",null,null,null,"Shelby (173)","Warrick (173)","Tama (171)","Sedgwick (173)","Montgomery (173)",null,null,null,null,null,"Wilkin (167)",null,"Ralls (173)",null,"Thurston (173)",null,null,null,null,null,"Swain (173)",null,"Williams (171)",null,null,null,null,null,null,"Union (173)","Glasscock (173)",null,null,"Surry (181)"]
[null,null,null,null,null,null,null,null,null,null,null,"Lee (177)",null,null,null,"Stark (175)","Washington (175)","Taylor (173)","Seward (175)","Morgan (175)",null,null,null,null,null,"Winona (169)",null,"Randolph (175)",null,"Valley (175)",null,null,null,null,null,"Transylvania (175)",null,"Wood (173)",null,null,null,null,null,null,"Van Buren (175)","Goliad (175)",null,null,"Sussex (183)"]
[null,null,null,null,null,null,null,null,null,null,null,"Liberty (179)",null,null,null,"Stephenson (177)","Wayne (177)","Union (175)","Shawnee (177)","Muhlenberg (177)",null,null,null,null,null,"Wright (171)",null,"Ray (177)",null,"Washington (177)",null,null,null,null,null,"Tyrrell (177)",null,"Wyandot (175)",null,null,null,null,null,null,"Warren (177)","Gonzales (177)",null,null,"Tazewell (185)"]
[null,null,null,null,null,null,null,null,null,null,null,"Lincoln (181)",null,null,null,"Tazewell (179)","Wells (179)","Van Buren (177)","Sheridan (179)","Nelson (179)",null,null,null,null,null,"Yellow Medicine (173)",null,"Reynolds (179)",null,"Wayne (179)",null,null,null,null,null,"Union (179)",null,null,null,null,null,null,null,null,"Washington (179)","Gray (179)",null,null,"Warren (187)"]
[null,null,null,null,null,null,null,null,null,null,null,"Long (183)",null,null,null,"Union (181)","White (181)","Wapello (179)","Sherman (181)","Nicholas (181)",null,null,null,null,null,null,null,"Ripley (181)",null,"Webster (181)",null,null,null,null,null,"Vance (181)",null,null,null,null,null,null,null,null,"Wayne (181)","Grayson (181)",null,null,"Washington, Bristol City (191)"]
[null,null,null,null,null,null,null,null,null,null,null,"Lowndes (185)",null,null,null,"Vermilion (183)","Whitley (183)","Warren (181)","Smith (183)","Ohio (183)",null,null,null,null,null,null,null,"St. Charles (183)",null,"Wheeler (183)",null,null,null,null,null,"Wake (183)",null,null,null,null,null,null,null,null,"Weakley (183)","Gregg (183)",null,null,"Westmoreland (193)"]
[null,null,null,null,null,null,null,null,null,null,null,"Lumpkin (187)",null,null,null,"Wabash (185)",null,"Washington (183)","Stafford (185)","Oldham (185)",null,null,null,null,null,null,null,"St. Clair (185)",null,"York (185)",null,null,null,null,null,"Warren (185)",null,null,null,null,null,null,null,null,"White (185)","Grimes (185)",null,null,"Wise (195)"]
[null,null,null,null,null,null,null,null,null,null,null,"McDuffie (189)",null,null,null,"Warren (187)",null,"Wayne (185)","Stanton (187)","Owen (187)",null,null,null,null,null,null,null,"St. Francois (187)",null,null,null,null,null,null,null,"Washington (187)",null,null,null,null,null,null,null,null,"Williamson (187)","Guadalupe (187)",null,null,"Wythe (197)"]
[null,null,null,null,null,null,null,null,null,null,null,"McIntosh (191)",null,null,null,"Washington (189)",null,"Webster (187)","Stevens (189)","Owsley (189)",null,null,null,null,null,null,null,"St. Louis (189)",null,null,null,null,null,null,null,"Watauga (189)",null,null,null,null,null,null,null,null,"Wilson (189)","Hale (189)",null,null,"York, Poquoson City (199)"]
[null,null,null,null,null,null,null,null,null,null,null,"Macon (193)",null,null,null,"Wayne (191)",null,"Winnebago (189)","Sumner (191)","Pendleton (191)",null,null,null,null,null,null,null,"Ste. Genevieve (193)",null,null,null,null,null,null,null,"Wayne (191)",null,null,null,null,null,null,null,null,null,"Hall (191)",null,null,"Alexandria (510)"]
[null,null,null,null,null,null,null,null,null,null,null,"Madison (195)",null,null,null,"White (193)",null,"Winneshiek (191)","Thomas (193)","Perry (193)",null,null,null,null,null,null,null,"Saline (195)",null,null,null,null,null,null,null,"Wilkes (193)",null,null,null,null,null,null,null,null,null,"Hamilton (193)",null,null,"Bedford (515)"]
[null,null,null,null,null,null,null,null,null,null,null,"Marion (197)",null,null,null,"Whiteside (195)",null,"Woodbury (193)","Trego (195)","Pike (195)",null,null,null,null,null,null,null,"Schuyler (197)",null,null,null,null,null,null,null,"Wilson (195)",null,null,null,null,null,null,null,null,null,"Hansford (195)",null,null,"Chesapeake (550)"]
[null,null,null,null,null,null,null,null,null,null,null,"Meriwether (199)",null,null,null,"Will (197)",null,"Worth (195)","Wabaunsee (197)","Powell (197)",null,null,null,null,null,null,null,"Scotland (199)",null,null,null,null,null,null,null,"Yadkin (197)",null,null,null,null,null,null,null,null,null,"Hardeman (197)",null,null,"Colonial Heights (570)"]
[null,null,null,null,null,null,null,null,null,null,null,"Miller (201)",null,null,null,"Williamson (199)",null,"Wright (197)","Wallace (199)","Pulaski (199)",null,null,null,null,null,null,null,"Scott (201)",null,null,null,null,null,null,null,"Yancey (199)",null,null,null,null,null,null,null,null,null,"Hardin (199)",null,null,"Danville (590)"]
[null,null,null,null,null,null,null,null,null,null,null,"Mitchell (205)",null,null,null,"Winnebago (201)",null,null,"Washington (201)","Robertson (201)",null,null,null,null,null,null,null,"Shannon (203)",null,null,null,null,null,null,null,null,null,null,null,null,null,null,null,null,null,"Harris (201)",null,null,"Fairfax (600)"]
[null,null,null,null,null,null,null,null,null,null,null,"Monroe (207)",null,null,null,"Woodford (203)",null,null,"Wichita (203)","Rockcastle (203)",null,null,null,null,null,null,null,"Shelby (205)",null,null,null,null,null,null,null,null,null,null,null,null,null,null,null,null,null,"Harrison (203)",null,null,"Falls Church (610)"]
[null,null,null,null,null,null,null,null,null,null,null,"Montgomery (209)",null,null,null,null,null,null,"Wilson (205)","Rowan (205)",null,null,null,null,null,null,null,"Stoddard (207)",null,null,null,null,null,null,null,null,null,null,null,null,null,null,null,null,null,"Hartley (205)",null,null,"Hampton (650)"]
[null,null,null,null,null,null,null,null,null,null,null,"Morgan (211)",null,null,null,null,null,null,"Woodson (207)","Russell (207)",null,null,null,null,null,null,null,"Stone (209)",null,null,null,null,null,null,null,null,null,null,null,null,null,null,null,null,null,"Haskell (207)",null,null,"Hopewell (670)"]
[null,null,null,null,null,null,null,null,null,null,null,"Murray (213)",null,null,null,null,null,null,"Wyandotte (209)","Scott (209)",null,null,null,null,null,null,null,"Sullivan (211)",null,null,null,null,null,null,null,null,null,null,null,null,null,null,null,null,null,"Hays (209)",null,null,"Manassas (683)"]
[null,null,null,null,null,null,null,null,null,null,null,"Muscogee (215)",null,null,null,null,null,null,null,"Shelby (211)",null,null,null,null,null,null,null,"Taney (213)",null,null,null,null,null,null,null,null,null,null,null,null,null,null,null,null,null,"Hemphill (211)",null,null,"Manassas Park (685)"]
[null,null,null,null,null,null,null,null,null,null,null,"Newton (217)",null,null,null,null,null,null,null,"Simpson (213)",null,null,null,null,null,null,null,"Texas (215)",null,null,null,null,null,null,null,null,null,null,null,null,null,null,null,null,null,"Henderson (213)",null,null,"Newport News (700)"]
[null,null,null,null,null,null,null,null,null,null,null,"Oconee (219)",null,null,null,null,null,null,null,"Spencer (215)",null,null,null,null,null,null,null,"Vernon (217)",null,null,null,null,null,null,null,null,null,null,null,null,null,null,null,null,null,"Hidalgo (215)",null,null,"Norfolk (710)"]
[null,null,null,null,null,null,null,null,null,null,null,"Oglethorpe (221)",null,null,null,null,null,null,null,"Taylor (217)",null,null,null,null,null,null,null,"Warren (219)",null,null,null,null,null,null,null,null,null,null,null,null,null,null,null,null,null,"Hill (217)",null,null,"Norton (720)"]
[null,null,null,null,null,null,null,null,null,null,null,"Paulding (223)",null,null,null,null,null,null,null,"Todd (219)",null,null,null,null,null,null,null,"Washington (221)",null,null,null,null,null,null,null,null,null,null,null,null,null,null,null,null,null,"Hockley (219)",null,null,"Portsmouth (740)"]
[null,null,null,null,null,null,null,null,null,null,null,"Peach (225)",null,null,null,null,null,null,null,"Trigg (221)",null,null,null,null,null,null,null,"Wayne (223)",null,null,null,null,null,null,null,null,null,null,null,null,null,null,null,null,null,"Hood (221)",null,null,"Staunton (790)"]
[null,null,null,null,null,null,null,null,null,null,null,"Pickens (227)",null,null,null,null,null,null,null,"Trimble (223)",null,null,null,null,null,null,null,"Webster (225)",null,null,null,null,null,null,null,null,null,null,null,null,null,null,null,null,null,"Hopkins (223)",null,null,"Suffolk (800)"]
[null,null,null,null,null,null,null,null,null,null,null,"Pierce (229)",null,null,null,null,null,null,null,"Union (225)",null,null,null,null,null,null,null,"Worth (227)",null,null,null,null,null,null,null,null,null,null,null,null,null,null,null,null,null,"Houston (225)",null,null,"Virginia Beach (810)"]
[null,null,null,null,null,null,null,null,null,null,null,"Pike (231)",null,null,null,null,null,null,null,"Warren (227)",null,null,null,null,null,null,null,"Wright (229)",null,null,null,null,null,null,null,null,null,null,null,null,null,null,null,null,null,"Howard (227)",null,null,"Waynesboro (820)"]
[null,null,null,null,null,null,null,null,null,null,null,"Polk (233)",null,null,null,null,null,null,null,"Washington (229)",null,null,null,null,null,null,null,"St. Louis (510)",null,null,null,null,null,null,null,null,null,null,null,null,null,null,null,null,null,"Hudspeth (229)"]
[null,null,null,null,null,null,null,null,null,null,null,"Pulaski (235)",null,null,null,null,null,null,null,"Wayne (231)",null,null,null,null,null,null,null,null,null,null,null,null,null,null,null,null,null,null,null,null,null,null,null,null,null,"Hunt (231)"]
[null,null,null,null,null,null,null,null,null,null,null,"Putnam (237)",null,null,null,null,null,null,null,"Webster (233)",null,null,null,null,null,null,null,null,null,null,null,null,null,null,null,null,null,null,null,null,null,null,null,null,null,"Hutchinson (233)"]
[null,null,null,null,null,null,null,null,null,null,null,"Quitman (239)",null,null,null,null,null,null,null,"Whitley (235)",null,null,null,null,null,null,null,null,null,null,null,null,null,null,null,null,null,null,null,null,null,null,null,null,null,"Irion (235)"]
[null,null,null,null,null,null,null,null,null,null,null,"Rabun (241)",null,null,null,null,null,null,null,"Wolfe (237)",null,null,null,null,null,null,null,null,null,null,null,null,null,null,null,null,null,null,null,null,null,null,null,null,null,"Jack (237)"]
[null,null,null,null,null,null,null,null,null,null,null,"Randolph (243)",null,null,null,null,null,null,null,"Woodford (239)",null,null,null,null,null,null,null,null,null,null,null,null,null,null,null,null,null,null,null,null,null,null,null,null,null,"Jackson (239)"]
[null,null,null,null,null,null,null,null,null,null,null,"Richmond (245)",null,null,null,null,null,null,null,null,null,null,null,null,null,null,null,null,null,null,null,null,null,null,null,null,null,null,null,null,null,null,null,null,null,"Jasper (241)"]
[null,null,null,null,null,null,null,null,null,null,null,"Rockdale (247)",null,null,null,null,null,null,null,null,null,null,null,null,null,null,null,null,null,null,null,null,null,null,null,null,null,null,null,null,null,null,null,null,null,"Jeff Davis (243)"]
[null,null,null,null,null,null,null,null,null,null,null,"Schley (249)",null,null,null,null,null,null,null,null,null,null,null,null,null,null,null,null,null,null,null,null,null,null,null,null,null,null,null,null,null,null,null,null,null,"Jefferson (245)"]
[null,null,null,null,null,null,null,null,null,null,null,"Screven (251)",null,null,null,null,null,null,null,null,null,null,null,null,null,null,null,null,null,null,null,null,null,null,null,null,null,null,null,null,null,null,null,null,null,"Jim Hogg (247)"]
[null,null,null,null,null,null,null,null,null,null,null,"Seminole (253)",null,null,null,null,null,null,null,null,null,null,null,null,null,null,null,null,null,null,null,null,null,null,null,null,null,null,null,null,null,null,null,null,null,"Jim Wells (249)"]
[null,null,null,null,null,null,null,null,null,null,null,"Spalding (255)",null,null,null,null,null,null,null,null,null,null,null,null,null,null,null,null,null,null,null,null,null,null,null,null,null,null,null,null,null,null,null,null,null,"Johnson (251)"]
[null,null,null,null,null,null,null,null,null,null,null,"Stephens (257)",null,null,null,null,null,null,null,null,null,null,null,null,null,null,null,null,null,null,null,null,null,null,null,null,null,null,null,null,null,null,null,null,null,"Jones (253)"]
[null,null,null,null,null,null,null,null,null,null,null,"Stewart (259)",null,null,null,null,null,null,null,null,null,null,null,null,null,null,null,null,null,null,null,null,null,null,null,null,null,null,null,null,null,null,null,null,null,"Karnes (255)"]
[null,null,null,null,null,null,null,null,null,null,null,"Sumter (261)",null,null,null,null,null,null,null,null,null,null,null,null,null,null,null,null,null,null,null,null,null,null,null,null,null,null,null,null,null,null,null,null,null,"Kaufman (257)"]
[null,null,null,null,null,null,null,null,null,null,null,"Talbot (263)",null,null,null,null,null,null,null,null,null,null,null,null,null,null,null,null,null,null,null,null,null,null,null,null,null,null,null,null,null,null,null,null,null,"Kendall (259)"]
[null,null,null,null,null,null,null,null,null,null,null,"Taliaferro (265)",null,null,null,null,null,null,null,null,null,null,null,null,null,null,null,null,null,null,null,null,null,null,null,null,null,null,null,null,null,null,null,null,null,"Kenedy (261)"]
[null,null,null,null,null,null,null,null,null,null,null,"Tattnall (267)",null,null,null,null,null,null,null,null,null,null,null,null,null,null,null,null,null,null,null,null,null,null,null,null,null,null,null,null,null,null,null,null,null,"Kent (263)"]
[null,null,null,null,null,null,null,null,null,null,null,"Taylor (269)",null,null,null,null,null,null,null,null,null,null,null,null,null,null,null,null,null,null,null,null,null,null,null,null,null,null,null,null,null,null,null,null,null,"Kerr (265)"]
[null,null,null,null,null,null,null,null,null,null,null,"Telfair (271)",null,null,null,null,null,null,null,null,null,null,null,null,null,null,null,null,null,null,null,null,null,null,null,null,null,null,null,null,null,null,null,null,null,"Kimble (267)"]
[null,null,null,null,null,null,null,null,null,null,null,"Terrell (273)",null,null,null,null,null,null,null,null,null,null,null,null,null,null,null,null,null,null,null,null,null,null,null,null,null,null,null,null,null,null,null,null,null,"King (269)"]
[null,null,null,null,null,null,null,null,null,null,null,"Thomas (275)",null,null,null,null,null,null,null,null,null,null,null,null,null,null,null,null,null,null,null,null,null,null,null,null,null,null,null,null,null,null,null,null,null,"Kinney (271)"]
[null,null,null,null,null,null,null,null,null,null,null,"Tift (277)",null,null,null,null,null,null,null,null,null,null,null,null,null,null,null,null,null,null,null,null,null,null,null,null,null,null,null,null,null,null,null,null,null,"Kleberg (273)"]
[null,null,null,null,null,null,null,null,null,null,null,"Toombs (279)",null,null,null,null,null,null,null,null,null,null,null,null,null,null,null,null,null,null,null,null,null,null,null,null,null,null,null,null,null,null,null,null,null,"Knox (275)"]
[null,null,null,null,null,null,null,null,null,null,null,"Towns (281)",null,null,null,null,null,null,null,null,null,null,null,null,null,null,null,null,null,null,null,null,null,null,null,null,null,null,null,null,null,null,null,null,null,"Lamar (277)"]
[null,null,null,null,null,null,null,null,null,null,null,"Treutlen (283)",null,null,null,null,null,null,null,null,null,null,null,null,null,null,null,null,null,null,null,null,null,null,null,null,null,null,null,null,null,null,null,null,null,"Lamb (279)"]
[null,null,null,null,null,null,null,null,null,null,null,"Troup (285)",null,null,null,null,null,null,null,null,null,null,null,null,null,null,null,null,null,null,null,null,null,null,null,null,null,null,null,null,null,null,null,null,null,"Lampasas (281)"]
[null,null,null,null,null,null,null,null,null,null,null,"Turner (287)",null,null,null,null,null,null,null,null,null,null,null,null,null,null,null,null,null,null,null,null,null,null,null,null,null,null,null,null,null,null,null,null,null,"La Salle (283)"]
[null,null,null,null,null,null,null,null,null,null,null,"Twiggs (289)",null,null,null,null,null,null,null,null,null,null,null,null,null,null,null,null,null,null,null,null,null,null,null,null,null,null,null,null,null,null,null,null,null,"Lavaca (285)"]
[null,null,null,null,null,null,null,null,null,null,null,"Union (291)",null,null,null,null,null,null,null,null,null,null,null,null,null,null,null,null,null,null,null,null,null,null,null,null,null,null,null,null,null,null,null,null,null,"Lee (287)"]
[null,null,null,null,null,null,null,null,null,null,null,"Upson (293)",null,null,null,null,null,null,null,null,null,null,null,null,null,null,null,null,null,null,null,null,null,null,null,null,null,null,null,null,null,null,null,null,null,"Leon (289)"]
[null,null,null,null,null,null,null,null,null,null,null,"Walker (295)",null,null,null,null,null,null,null,null,null,null,null,null,null,null,null,null,null,null,null,null,null,null,null,null,null,null,null,null,null,null,null,null,null,"Liberty (291)"]
[null,null,null,null,null,null,null,null,null,null,null,"Walton (297)",null,null,null,null,null,null,null,null,null,null,null,null,null,null,null,null,null,null,null,null,null,null,null,null,null,null,null,null,null,null,null,null,null,"Limestone (293)"]
[null,null,null,null,null,null,null,null,null,null,null,"Ware (299)",null,null,null,null,null,null,null,null,null,null,null,null,null,null,null,null,null,null,null,null,null,null,null,null,null,null,null,null,null,null,null,null,null,"Lipscomb (295)"]
[null,null,null,null,null,null,null,null,null,null,null,"Warren (301)",null,null,null,null,null,null,null,null,null,null,null,null,null,null,null,null,null,null,null,null,null,null,null,null,null,null,null,null,null,null,null,null,null,"Live Oak (297)"]
[null,null,null,null,null,null,null,null,null,null,null,"Washington (303)",null,null,null,null,null,null,null,null,null,null,null,null,null,null,null,null,null,null,null,null,null,null,null,null,null,null,null,null,null,null,null,null,null,"Llano (299)"]
[null,null,null,null,null,null,null,null,null,null,null,"Wayne (305)",null,null,null,null,null,null,null,null,null,null,null,null,null,null,null,null,null,null,null,null,null,null,null,null,null,null,null,null,null,null,null,null,null,"Loving (301)"]
[null,null,null,null,null,null,null,null,null,null,null,"Webster (307)",null,null,null,null,null,null,null,null,null,null,null,null,null,null,null,null,null,null,null,null,null,null,null,null,null,null,null,null,null,null,null,null,null,"Lubbock (303)"]
[null,null,null,null,null,null,null,null,null,null,null,"Wheeler (309)",null,null,null,null,null,null,null,null,null,null,null,null,null,null,null,null,null,null,null,null,null,null,null,null,null,null,null,null,null,null,null,null,null,"Lynn (305)"]
[null,null,null,null,null,null,null,null,null,null,null,"White (311)",null,null,null,null,null,null,null,null,null,null,null,null,null,null,null,null,null,null,null,null,null,null,null,null,null,null,null,null,null,null,null,null,null,"McCulloch (307)"]
[null,null,null,null,null,null,null,null,null,null,null,"Whitfield (313)",null,null,null,null,null,null,null,null,null,null,null,null,null,null,null,null,null,null,null,null,null,null,null,null,null,null,null,null,null,null,null,null,null,"McLennan (309)"]
[null,null,null,null,null,null,null,null,null,null,null,"Wilcox (315)",null,null,null,null,null,null,null,null,null,null,null,null,null,null,null,null,null,null,null,null,null,null,null,null,null,null,null,null,null,null,null,null,null,"McMullen (311)"]
[null,null,null,null,null,null,null,null,null,null,null,"Wilkes (317)",null,null,null,null,null,null,null,null,null,null,null,null,null,null,null,null,null,null,null,null,null,null,null,null,null,null,null,null,null,null,null,null,null,"Madison (313)"]
[null,null,null,null,null,null,null,null,null,null,null,"Wilkinson (319)",null,null,null,null,null,null,null,null,null,null,null,null,null,null,null,null,null,null,null,null,null,null,null,null,null,null,null,null,null,null,null,null,null,"Marion (315)"]
[null,null,null,null,null,null,null,null,null,null,null,"Worth (321)",null,null,null,null,null,null,null,null,null,null,null,null,null,null,null,null,null,null,null,null,null,null,null,null,null,null,null,null,null,null,null,null,null,"Martin (317)"]
[null,null,null,null,null,null,null,null,null,null,null,null,null,null,null,null,null,null,null,null,null,null,null,null,null,null,null,null,null,null,null,null,null,null,null,null,null,null,null,null,null,null,null,null,null,"Mason (319)"]
[null,null,null,null,null,null,null,null,null,null,null,null,null,null,null,null,null,null,null,null,null,null,null,null,null,null,null,null,null,null,null,null,null,null,null,null,null,null,null,null,null,null,null,null,null,"Matagorda (321)"]
[null,null,null,null,null,null,null,null,null,null,null,null,null,null,null,null,null,null,null,null,null,null,null,null,null,null,null,null,null,null,null,null,null,null,null,null,null,null,null,null,null,null,null,null,null,"Maverick (323)"]
[null,null,null,null,null,null,null,null,null,null,null,null,null,null,null,null,null,null,null,null,null,null,null,null,null,null,null,null,null,null,null,null,null,null,null,null,null,null,null,null,null,null,null,null,null,"Medina (325)"]
[null,null,null,null,null,null,null,null,null,null,null,null,null,null,null,null,null,null,null,null,null,null,null,null,null,null,null,null,null,null,null,null,null,null,null,null,null,null,null,null,null,null,null,null,null,"Menard (327)"]
[null,null,null,null,null,null,null,null,null,null,null,null,null,null,null,null,null,null,null,null,null,null,null,null,null,null,null,null,null,null,null,null,null,null,null,null,null,null,null,null,null,null,null,null,null,"Midland (329)"]
[null,null,null,null,null,null,null,null,null,null,null,null,null,null,null,null,null,null,null,null,null,null,null,null,null,null,null,null,null,null,null,null,null,null,null,null,null,null,null,null,null,null,null,null,null,"Milam (331)"]
[null,null,null,null,null,null,null,null,null,null,null,null,null,null,null,null,null,null,null,null,null,null,null,null,null,null,null,null,null,null,null,null,null,null,null,null,null,null,null,null,null,null,null,null,null,"Mills (333)"]
[null,null,null,null,null,null,null,null,null,null,null,null,null,null,null,null,null,null,null,null,null,null,null,null,null,null,null,null,null,null,null,null,null,null,null,null,null,null,null,null,null,null,null,null,null,"Mitchell (335)"]
[null,null,null,null,null,null,null,null,null,null,null,null,null,null,null,null,null,null,null,null,null,null,null,null,null,null,null,null,null,null,null,null,null,null,null,null,null,null,null,null,null,null,null,null,null,"Montague (337)"]
[null,null,null,null,null,null,null,null,null,null,null,null,null,null,null,null,null,null,null,null,null,null,null,null,null,null,null,null,null,null,null,null,null,null,null,null,null,null,null,null,null,null,null,null,null,"Montgomery (339)"]
[null,null,null,null,null,null,null,null,null,null,null,null,null,null,null,null,null,null,null,null,null,null,null,null,null,null,null,null,null,null,null,null,null,null,null,null,null,null,null,null,null,null,null,null,null,"Moore (341)"]
[null,null,null,null,null,null,null,null,null,null,null,null,null,null,null,null,null,null,null,null,null,null,null,null,null,null,null,null,null,null,null,null,null,null,null,null,null,null,null,null,null,null,null,null,null,"Morris (343)"]
[null,null,null,null,null,null,null,null,null,null,null,null,null,null,null,null,null,null,null,null,null,null,null,null,null,null,null,null,null,null,null,null,null,null,null,null,null,null,null,null,null,null,null,null,null,"Motley (345)"]
[null,null,null,null,null,null,null,null,null,null,null,null,null,null,null,null,null,null,null,null,null,null,null,null,null,null,null,null,null,null,null,null,null,null,null,null,null,null,null,null,null,null,null,null,null,"Nacogdoches (347)"]
[null,null,null,null,null,null,null,null,null,null,null,null,null,null,null,null,null,null,null,null,null,null,null,null,null,null,null,null,null,null,null,null,null,null,null,null,null,null,null,null,null,null,null,null,null,"Navarro (349)"]
[null,null,null,null,null,null,null,null,null,null,null,null,null,null,null,null,null,null,null,null,null,null,null,null,null,null,null,null,null,null,null,null,null,null,null,null,null,null,null,null,null,null,null,null,null,"Newton (351)"]
[null,null,null,null,null,null,null,null,null,null,null,null,null,null,null,null,null,null,null,null,null,null,null,null,null,null,null,null,null,null,null,null,null,null,null,null,null,null,null,null,null,null,null,null,null,"Nolan (353)"]
[null,null,null,null,null,null,null,null,null,null,null,null,null,null,null,null,null,null,null,null,null,null,null,null,null,null,null,null,null,null,null,null,null,null,null,null,null,null,null,null,null,null,null,null,null,"Nueces (355)"]
[null,null,null,null,null,null,null,null,null,null,null,null,null,null,null,null,null,null,null,null,null,null,null,null,null,null,null,null,null,null,null,null,null,null,null,null,null,null,null,null,null,null,null,null,null,"Ochiltree (357)"]
[null,null,null,null,null,null,null,null,null,null,null,null,null,null,null,null,null,null,null,null,null,null,null,null,null,null,null,null,null,null,null,null,null,null,null,null,null,null,null,null,null,null,null,null,null,"Oldham (359)"]
[null,null,null,null,null,null,null,null,null,null,null,null,null,null,null,null,null,null,null,null,null,null,null,null,null,null,null,null,null,null,null,null,null,null,null,null,null,null,null,null,null,null,null,null,null,"Orange (361)"]
[null,null,null,null,null,null,null,null,null,null,null,null,null,null,null,null,null,null,null,null,null,null,null,null,null,null,null,null,null,null,null,null,null,null,null,null,null,null,null,null,null,null,null,null,null,"Palo Pinto (363)"]
[null,null,null,null,null,null,null,null,null,null,null,null,null,null,null,null,null,null,null,null,null,null,null,null,null,null,null,null,null,null,null,null,null,null,null,null,null,null,null,null,null,null,null,null,null,"Panola (365)"]
[null,null,null,null,null,null,null,null,null,null,null,null,null,null,null,null,null,null,null,null,null,null,null,null,null,null,null,null,null,null,null,null,null,null,null,null,null,null,null,null,null,null,null,null,null,"Parker (367)"]
[null,null,null,null,null,null,null,null,null,null,null,null,null,null,null,null,null,null,null,null,null,null,null,null,null,null,null,null,null,null,null,null,null,null,null,null,null,null,null,null,null,null,null,null,null,"Parmer (369)"]
[null,null,null,null,null,null,null,null,null,null,null,null,null,null,null,null,null,null,null,null,null,null,null,null,null,null,null,null,null,null,null,null,null,null,null,null,null,null,null,null,null,null,null,null,null,"Pecos (371)"]
[null,null,null,null,null,null,null,null,null,null,null,null,null,null,null,null,null,null,null,null,null,null,null,null,null,null,null,null,null,null,null,null,null,null,null,null,null,null,null,null,null,null,null,null,null,"Polk (373)"]
[null,null,null,null,null,null,null,null,null,null,null,null,null,null,null,null,null,null,null,null,null,null,null,null,null,null,null,null,null,null,null,null,null,null,null,null,null,null,null,null,null,null,null,null,null,"Potter (375)"]
[null,null,null,null,null,null,null,null,null,null,null,null,null,null,null,null,null,null,null,null,null,null,null,null,null,null,null,null,null,null,null,null,null,null,null,null,null,null,null,null,null,null,null,null,null,"Presidio (377)"]
[null,null,null,null,null,null,null,null,null,null,null,null,null,null,null,null,null,null,null,null,null,null,null,null,null,null,null,null,null,null,null,null,null,null,null,null,null,null,null,null,null,null,null,null,null,"Rains (379)"]
[null,null,null,null,null,null,null,null,null,null,null,null,null,null,null,null,null,null,null,null,null,null,null,null,null,null,null,null,null,null,null,null,null,null,null,null,null,null,null,null,null,null,null,null,null,"Randall (381)"]
[null,null,null,null,null,null,null,null,null,null,null,null,null,null,null,null,null,null,null,null,null,null,null,null,null,null,null,null,null,null,null,null,null,null,null,null,null,null,null,null,null,null,null,null,null,"Reagan (383)"]
[null,null,null,null,null,null,null,null,null,null,null,null,null,null,null,null,null,null,null,null,null,null,null,null,null,null,null,null,null,null,null,null,null,null,null,null,null,null,null,null,null,null,null,null,null,"Real (385)"]
[null,null,null,null,null,null,null,null,null,null,null,null,null,null,null,null,null,null,null,null,null,null,null,null,null,null,null,null,null,null,null,null,null,null,null,null,null,null,null,null,null,null,null,null,null,"Red River (387)"]
[null,null,null,null,null,null,null,null,null,null,null,null,null,null,null,null,null,null,null,null,null,null,null,null,null,null,null,null,null,null,null,null,null,null,null,null,null,null,null,null,null,null,null,null,null,"Reeves (389)"]
[null,null,null,null,null,null,null,null,null,null,null,null,null,null,null,null,null,null,null,null,null,null,null,null,null,null,null,null,null,null,null,null,null,null,null,null,null,null,null,null,null,null,null,null,null,"Refugio (391)"]
[null,null,null,null,null,null,null,null,null,null,null,null,null,null,null,null,null,null,null,null,null,null,null,null,null,null,null,null,null,null,null,null,null,null,null,null,null,null,null,null,null,null,null,null,null,"Roberts (393)"]
[null,null,null,null,null,null,null,null,null,null,null,null,null,null,null,null,null,null,null,null,null,null,null,null,null,null,null,null,null,null,null,null,null,null,null,null,null,null,null,null,null,null,null,null,null,"Robertson (395)"]
[null,null,null,null,null,null,null,null,null,null,null,null,null,null,null,null,null,null,null,null,null,null,null,null,null,null,null,null,null,null,null,null,null,null,null,null,null,null,null,null,null,null,null,null,null,"Rockwall (397)"]
[null,null,null,null,null,null,null,null,null,null,null,null,null,null,null,null,null,null,null,null,null,null,null,null,null,null,null,null,null,null,null,null,null,null,null,null,null,null,null,null,null,null,null,null,null,"Runnels (399)"]
[null,null,null,null,null,null,null,null,null,null,null,null,null,null,null,null,null,null,null,null,null,null,null,null,null,null,null,null,null,null,null,null,null,null,null,null,null,null,null,null,null,null,null,null,null,"Rusk (401)"]
[null,null,null,null,null,null,null,null,null,null,null,null,null,null,null,null,null,null,null,null,null,null,null,null,null,null,null,null,null,null,null,null,null,null,null,null,null,null,null,null,null,null,null,null,null,"Sabine (403)"]
[null,null,null,null,null,null,null,null,null,null,null,null,null,null,null,null,null,null,null,null,null,null,null,null,null,null,null,null,null,null,null,null,null,null,null,null,null,null,null,null,null,null,null,null,null,"San Augustine (405)"]
[null,null,null,null,null,null,null,null,null,null,null,null,null,null,null,null,null,null,null,null,null,null,null,null,null,null,null,null,null,null,null,null,null,null,null,null,null,null,null,null,null,null,null,null,null,"San Jacinto (407)"]
[null,null,null,null,null,null,null,null,null,null,null,null,null,null,null,null,null,null,null,null,null,null,null,null,null,null,null,null,null,null,null,null,null,null,null,null,null,null,null,null,null,null,null,null,null,"San Patricio (409)"]
[null,null,null,null,null,null,null,null,null,null,null,null,null,null,null,null,null,null,null,null,null,null,null,null,null,null,null,null,null,null,null,null,null,null,null,null,null,null,null,null,null,null,null,null,null,"San Saba (411)"]
[null,null,null,null,null,null,null,null,null,null,null,null,null,null,null,null,null,null,null,null,null,null,null,null,null,null,null,null,null,null,null,null,null,null,null,null,null,null,null,null,null,null,null,null,null,"Schleicher (413)"]
[null,null,null,null,null,null,null,null,null,null,null,null,null,null,null,null,null,null,null,null,null,null,null,null,null,null,null,null,null,null,null,null,null,null,null,null,null,null,null,null,null,null,null,null,null,"Scurry (415)"]
[null,null,null,null,null,null,null,null,null,null,null,null,null,null,null,null,null,null,null,null,null,null,null,null,null,null,null,null,null,null,null,null,null,null,null,null,null,null,null,null,null,null,null,null,null,"Shackelford (417)"]
[null,null,null,null,null,null,null,null,null,null,null,null,null,null,null,null,null,null,null,null,null,null,null,null,null,null,null,null,null,null,null,null,null,null,null,null,null,null,null,null,null,null,null,null,null,"Shelby (419)"]
[null,null,null,null,null,null,null,null,null,null,null,null,null,null,null,null,null,null,null,null,null,null,null,null,null,null,null,null,null,null,null,null,null,null,null,null,null,null,null,null,null,null,null,null,null,"Sherman (421)"]
[null,null,null,null,null,null,null,null,null,null,null,null,null,null,null,null,null,null,null,null,null,null,null,null,null,null,null,null,null,null,null,null,null,null,null,null,null,null,null,null,null,null,null,null,null,"Smith (423)"]
[null,null,null,null,null,null,null,null,null,null,null,null,null,null,null,null,null,null,null,null,null,null,null,null,null,null,null,null,null,null,null,null,null,null,null,null,null,null,null,null,null,null,null,null,null,"Somervell (425)"]
[null,null,null,null,null,null,null,null,null,null,null,null,null,null,null,null,null,null,null,null,null,null,null,null,null,null,null,null,null,null,null,null,null,null,null,null,null,null,null,null,null,null,null,null,null,"Starr (427)"]
[null,null,null,null,null,null,null,null,null,null,null,null,null,null,null,null,null,null,null,null,null,null,null,null,null,null,null,null,null,null,null,null,null,null,null,null,null,null,null,null,null,null,null,null,null,"Stephens (429)"]
[null,null,null,null,null,null,null,null,null,null,null,null,null,null,null,null,null,null,null,null,null,null,null,null,null,null,null,null,null,null,null,null,null,null,null,null,null,null,null,null,null,null,null,null,null,"Sterling (431)"]
[null,null,null,null,null,null,null,null,null,null,null,null,null,null,null,null,null,null,null,null,null,null,null,null,null,null,null,null,null,null,null,null,null,null,null,null,null,null,null,null,null,null,null,null,null,"Stonewall (433)"]
[null,null,null,null,null,null,null,null,null,null,null,null,null,null,null,null,null,null,null,null,null,null,null,null,null,null,null,null,null,null,null,null,null,null,null,null,null,null,null,null,null,null,null,null,null,"Sutton (435)"]
[null,null,null,null,null,null,null,null,null,null,null,null,null,null,null,null,null,null,null,null,null,null,null,null,null,null,null,null,null,null,null,null,null,null,null,null,null,null,null,null,null,null,null,null,null,"Swisher (437)"]
[null,null,null,null,null,null,null,null,null,null,null,null,null,null,null,null,null,null,null,null,null,null,null,null,null,null,null,null,null,null,null,null,null,null,null,null,null,null,null,null,null,null,null,null,null,"Tarrant (439)"]
[null,null,null,null,null,null,null,null,null,null,null,null,null,null,null,null,null,null,null,null,null,null,null,null,null,null,null,null,null,null,null,null,null,null,null,null,null,null,null,null,null,null,null,null,null,"Taylor (441)"]
[null,null,null,null,null,null,null,null,null,null,null,null,null,null,null,null,null,null,null,null,null,null,null,null,null,null,null,null,null,null,null,null,null,null,null,null,null,null,null,null,null,null,null,null,null,"Terrell (443)"]
[null,null,null,null,null,null,null,null,null,null,null,null,null,null,null,null,null,null,null,null,null,null,null,null,null,null,null,null,null,null,null,null,null,null,null,null,null,null,null,null,null,null,null,null,null,"Terry (445)"]
[null,null,null,null,null,null,null,null,null,null,null,null,null,null,null,null,null,null,null,null,null,null,null,null,null,null,null,null,null,null,null,null,null,null,null,null,null,null,null,null,null,null,null,null,null,"Throckmorton (447)"]
[null,null,null,null,null,null,null,null,null,null,null,null,null,null,null,null,null,null,null,null,null,null,null,null,null,null,null,null,null,null,null,null,null,null,null,null,null,null,null,null,null,null,null,null,null,"Titus (449)"]
[null,null,null,null,null,null,null,null,null,null,null,null,null,null,null,null,null,null,null,null,null,null,null,null,null,null,null,null,null,null,null,null,null,null,null,null,null,null,null,null,null,null,null,null,null,"Tom Green (451)"]
[null,null,null,null,null,null,null,null,null,null,null,null,null,null,null,null,null,null,null,null,null,null,null,null,null,null,null,null,null,null,null,null,null,null,null,null,null,null,null,null,null,null,null,null,null,"Travis (453)"]
[null,null,null,null,null,null,null,null,null,null,null,null,null,null,null,null,null,null,null,null,null,null,null,null,null,null,null,null,null,null,null,null,null,null,null,null,null,null,null,null,null,null,null,null,null,"Trinity (455)"]
[null,null,null,null,null,null,null,null,null,null,null,null,null,null,null,null,null,null,null,null,null,null,null,null,null,null,null,null,null,null,null,null,null,null,null,null,null,null,null,null,null,null,null,null,null,"Tyler (457)"]
[null,null,null,null,null,null,null,null,null,null,null,null,null,null,null,null,null,null,null,null,null,null,null,null,null,null,null,null,null,null,null,null,null,null,null,null,null,null,null,null,null,null,null,null,null,"Upshur (459)"]
[null,null,null,null,null,null,null,null,null,null,null,null,null,null,null,null,null,null,null,null,null,null,null,null,null,null,null,null,null,null,null,null,null,null,null,null,null,null,null,null,null,null,null,null,null,"Upton (461)"]
[null,null,null,null,null,null,null,null,null,null,null,null,null,null,null,null,null,null,null,null,null,null,null,null,null,null,null,null,null,null,null,null,null,null,null,null,null,null,null,null,null,null,null,null,null,"Uvalde (463)"]
[null,null,null,null,null,null,null,null,null,null,null,null,null,null,null,null,null,null,null,null,null,null,null,null,null,null,null,null,null,null,null,null,null,null,null,null,null,null,null,null,null,null,null,null,null,"Val Verde (465)"]
[null,null,null,null,null,null,null,null,null,null,null,null,null,null,null,null,null,null,null,null,null,null,null,null,null,null,null,null,null,null,null,null,null,null,null,null,null,null,null,null,null,null,null,null,null,"Van Zandt (467)"]
[null,null,null,null,null,null,null,null,null,null,null,null,null,null,null,null,null,null,null,null,null,null,null,null,null,null,null,null,null,null,null,null,null,null,null,null,null,null,null,null,null,null,null,null,null,"Victoria (469)"]
[null,null,null,null,null,null,null,null,null,null,null,null,null,null,null,null,null,null,null,null,null,null,null,null,null,null,null,null,null,null,null,null,null,null,null,null,null,null,null,null,null,null,null,null,null,"Walker (471)"]
[null,null,null,null,null,null,null,null,null,null,null,null,null,null,null,null,null,null,null,null,null,null,null,null,null,null,null,null,null,null,null,null,null,null,null,null,null,null,null,null,null,null,null,null,null,"Waller (473)"]
[null,null,null,null,null,null,null,null,null,null,null,null,null,null,null,null,null,null,null,null,null,null,null,null,null,null,null,null,null,null,null,null,null,null,null,null,null,null,null,null,null,null,null,null,null,"Ward (475)"]
[null,null,null,null,null,null,null,null,null,null,null,null,null,null,null,null,null,null,null,null,null,null,null,null,null,null,null,null,null,null,null,null,null,null,null,null,null,null,null,null,null,null,null,null,null,"Washington (477)"]
[null,null,null,null,null,null,null,null,null,null,null,null,null,null,null,null,null,null,null,null,null,null,null,null,null,null,null,null,null,null,null,null,null,null,null,null,null,null,null,null,null,null,null,null,null,"Webb (479)"]
[null,null,null,null,null,null,null,null,null,null,null,null,null,null,null,null,null,null,null,null,null,null,null,null,null,null,null,null,null,null,null,null,null,null,null,null,null,null,null,null,null,null,null,null,null,"Wharton (481)"]
[null,null,null,null,null,null,null,null,null,null,null,null,null,null,null,null,null,null,null,null,null,null,null,null,null,null,null,null,null,null,null,null,null,null,null,null,null,null,null,null,null,null,null,null,null,"Wheeler (483)"]
[null,null,null,null,null,null,null,null,null,null,null,null,null,null,null,null,null,null,null,null,null,null,null,null,null,null,null,null,null,null,null,null,null,null,null,null,null,null,null,null,null,null,null,null,null,"Wichita (485)"]
[null,null,null,null,null,null,null,null,null,null,null,null,null,null,null,null,null,null,null,null,null,null,null,null,null,null,null,null,null,null,null,null,null,null,null,null,null,null,null,null,null,null,null,null,null,"Wilbarger (487)"]
[null,null,null,null,null,null,null,null,null,null,null,null,null,null,null,null,null,null,null,null,null,null,null,null,null,null,null,null,null,null,null,null,null,null,null,null,null,null,null,null,null,null,null,null,null,"Willacy (489)"]
[null,null,null,null,null,null,null,null,null,null,null,null,null,null,null,null,null,null,null,null,null,null,null,null,null,null,null,null,null,null,null,null,null,null,null,null,null,null,null,null,null,null,null,null,null,"Williamson (491)"]
[null,null,null,null,null,null,null,null,null,null,null,null,null,null,null,null,null,null,null,null,null,null,null,null,null,null,null,null,null,null,null,null,null,null,null,null,null,null,null,null,null,null,null,null,null,"Wilson (493)"]
[null,null,null,null,null,null,null,null,null,null,null,null,null,null,null,null,null,null,null,null,null,null,null,null,null,null,null,null,null,null,null,null,null,null,null,null,null,null,null,null,null,null,null,null,null,"Winkler (495)"]
[null,null,null,null,null,null,null,null,null,null,null,null,null,null,null,null,null,null,null,null,null,null,null,null,null,null,null,null,null,null,null,null,null,null,null,null,null,null,null,null,null,null,null,null,null,"Wise (497)"]
[null,null,null,null,null,null,null,null,null,null,null,null,null,null,null,null,null,null,null,null,null,null,null,null,null,null,null,null,null,null,null,null,null,null,null,null,null,null,null,null,null,null,null,null,null,"Wood (499)"]
[null,null,null,null,null,null,null,null,null,null,null,null,null,null,null,null,null,null,null,null,null,null,null,null,null,null,null,null,null,null,null,null,null,null,null,null,null,null,null,null,null,null,null,null,null,"Yoakum (501)"]
[null,null,null,null,null,null,null,null,null,null,null,null,null,null,null,null,null,null,null,null,null,null,null,null,null,null,null,null,null,null,null,null,null,null,null,null,null,null,null,null,null,null,null,null,null,"Young (503)"]
[null,null,null,null,null,null,null,null,null,null,null,null,null,null,null,null,null,null,null,null,null,null,null,null,null,null,null,null,null,null,null,null,null,null,null,null,null,null,null,null,null,null,null,null,null,"Zapata (505)"]
[null,null,null,null,null,null,null,null,null,null,null,null,null,null,null,null,null,null,null,null,null,null,null,null,null,null,null,null,null,null,null,null,null,null,null,null,null,null,null,null,null,null,null,null,null,"Zavala (507)"]